Workbook

Sheet Instructions
A1: How to Use this Report:
A2: 1. In AdvancePro, perform an export to QuickBooks.
A3: 2. Run "Inventory Valuation Summary" report in QB.
A4: 3. Export report to new Excel worksheet.
A5: 4. On the exported sheet, adjust columns as necessary so that Column C = 'Inventory', Column D = 'On Hand', Column F = 'Calculated Avg', and Column H = 'Asset Value'
A6: 5. Select columns A to H, copy those columns and then paste onto the 'QB Report' sheet of this workbook (click on cell A1 and paste)
A7: 6. Go to the 'Expected QB Values' sheet and set the start and end dates at the top to calculate avg. cost. Only bills & work orders within the selected date range will be used to calculate the avg. cost (if there are no bills or work orders, the current cost set for the product will be used).
A8: 7. Click the 'Refresh Report' button to populate the report with the latest AdvancePro data.
A9: 8. Save the report with a different name for reference (this will allow you to revert back if you accidentally refresh and affect the values used for comparison).

Sheet Expected QB Values
C1: AP vs. QB Inventory Comparison Report | G1: Avg. Cost Calculation
G2: Start Date: | H2: 2018-01-01
G3: End Date: | H3: 2018-12-31
B4: AP Product Details | G4: QB Export Status | I4: Quantities on transactions pending export to QB (DS = 'Drop Ship', WO = 'Work Order') Adjusted = Inventory adjustments pending QB export (blank if auto adjust QB inv. Setting is enabled) | R4: Expected QB values vs. actual
A5: ID | B5: Product SKU | C5: Product Name | D5: AP QTY | E5: Cost | F5: Avg. Cost | G5: Exportable | H5: Exported | I5: Bills | J5: DS Bills | K5: Cust RMA | L5: WO Built | M5: Invoices | N5: DS Invoices | O5: Vendor RMA | P5: WO Used | Q5: Adjusted | R5: Exp. QB QTY | S5: Actual QB QTY | T5: Exp. Avg. Cost | U5: Actual Avg. Cost | V5: Exp. Asset Value | W5: Actual Asset Value | X5: Value Difference
A6: 1290 | B6: 123 | C6: ASEMBLY 1 | D6: 0 | E6: 57.5 | G6: 1 | H6: 1 | R6: 0 | S6: =INDEX('QB Report'!D:D,MATCH(Table_Query_from_AdvancePro_DB4[[#This Row],[Product SKU]]&"*",'QB Report'!C:C,0)) ->  | T6: 57.5 | U6: =INDEX('QB Report'!F:F,MATCH(Table_Query_from_AdvancePro_DB4[[#This Row],[Product SKU]]&"*",'QB Report'!C:C,0)) ->  | V6: 0 | W6: =INDEX('QB Report'!H:H,MATCH(Table_Query_from_AdvancePro_DB4[[#This Row],[Product SKU]]&"*",'QB Report'!C:C,0)) ->  | X6: =Table_Query_from_AdvancePro_DB4[[#This Row],[Actual Asset Value]]-Table_Query_from_AdvancePro_DB4[[#This Row],[Exp. Asset Value]] -> 
A7: 1227 | B7: 252025-L3-W1-T4 | C7: CF25 with 25-26.9 Density, 32-35 long, <14 wide, 2.00-2.25 thick | D7: 40 | E7: 13.4 | F7: 13.4 | G7: 1 | H7: 1 | R7: 40 | S7: =INDEX('QB Report'!D:D,MATCH(Table_Query_from_AdvancePro_DB4[[#This Row],[Product SKU]]&"*",'QB Report'!C:C,0)) -> 40 | T7: 13.4 | U7: =INDEX('QB Report'!F:F,MATCH(Table_Query_from_AdvancePro_DB4[[#This Row],[Product SKU]]&"*",'QB Report'!C:C,0)) -> 3.4 | V7: 536 | W7: =INDEX('QB Report'!H:H,MATCH(Table_Query_from_AdvancePro_DB4[[#This Row],[Product SKU]]&"*",'QB Report'!C:C,0)) -> 136 | X7: =Table_Query_from_AdvancePro_DB4[[#This Row],[Actual Asset Value]]-Table_Query_from_AdvancePro_DB4[[#This Row],[Exp. Asset Value]] -> -400
A8: 1285 | B8: 2x20 ABC | C8: 2x20 ft ABC | D8: 0 | E8: 2 | G8: 1 | H8: 1 | R8: 0 | S8: =INDEX('QB Report'!D:D,MATCH(Table_Query_from_AdvancePro_DB4[[#This Row],[Product SKU]]&"*",'QB Report'!C:C,0)) ->  | T8: 2 | U8: =INDEX('QB Report'!F:F,MATCH(Table_Query_from_AdvancePro_DB4[[#This Row],[Product SKU]]&"*",'QB Report'!C:C,0)) ->  | V8: 0 | W8: =INDEX('QB Report'!H:H,MATCH(Table_Query_from_AdvancePro_DB4[[#This Row],[Product SKU]]&"*",'QB Report'!C:C,0)) ->  | X8: =Table_Query_from_AdvancePro_DB4[[#This Row],[Actual Asset Value]]-Table_Query_from_AdvancePro_DB4[[#This Row],[Exp. Asset Value]] -> 
A9: 1225 | B9: 303030-L4-W2-T3 | C9: CF30 with 30+ Density, 36-39 logn, 14-15 wide, 1.75-1.99 thick | D9: 100 | E9: 43.4 | F9: 43.4 | G9: 1 | H9: 1 | R9: 100 | S9: =INDEX('QB Report'!D:D,MATCH(Table_Query_from_AdvancePro_DB4[[#This Row],[Product SKU]]&"*",'QB Report'!C:C,0)) -> 100 | T9: 43.4 | U9: =INDEX('QB Report'!F:F,MATCH(Table_Query_from_AdvancePro_DB4[[#This Row],[Product SKU]]&"*",'QB Report'!C:C,0)) -> 3.4 | V9: 4340 | W9: =INDEX('QB Report'!H:H,MATCH(Table_Query_from_AdvancePro_DB4[[#This Row],[Product SKU]]&"*",'QB Report'!C:C,0)) -> 340 | X9: =Table_Query_from_AdvancePro_DB4[[#This Row],[Actual Asset Value]]-Table_Query_from_AdvancePro_DB4[[#This Row],[Exp. Asset Value]] -> -4000
A10: 1270 | B10: 3M Angle | C10: 3M Angle | D10: 0 | E10: 26 | G10: 1 | H10: 1 | R10: 0 | S10: =INDEX('QB Report'!D:D,MATCH(Table_Query_from_AdvancePro_DB4[[#This Row],[Product SKU]]&"*",'QB Report'!C:C,0)) ->  | T10: 26 | U10: =INDEX('QB Report'!F:F,MATCH(Table_Query_from_AdvancePro_DB4[[#This Row],[Product SKU]]&"*",'QB Report'!C:C,0)) ->  | V10: 0 | W10: =INDEX('QB Report'!H:H,MATCH(Table_Query_from_AdvancePro_DB4[[#This Row],[Product SKU]]&"*",'QB Report'!C:C,0)) ->  | X10: =Table_Query_from_AdvancePro_DB4[[#This Row],[Actual Asset Value]]-Table_Query_from_AdvancePro_DB4[[#This Row],[Exp. Asset Value]] -> 
A11: 1271 | B11: 3M Angle 2 | C11: 3M Angle | D11: 0 | E11: 26 | G11: 1 | H11: 1 | R11: 0 | S11: =INDEX('QB Report'!D:D,MATCH(Table_Query_from_AdvancePro_DB4[[#This Row],[Product SKU]]&"*",'QB Report'!C:C,0)) ->  | T11: 26 | U11: =INDEX('QB Report'!F:F,MATCH(Table_Query_from_AdvancePro_DB4[[#This Row],[Product SKU]]&"*",'QB Report'!C:C,0)) ->  | V11: 0 | W11: =INDEX('QB Report'!H:H,MATCH(Table_Query_from_AdvancePro_DB4[[#This Row],[Product SKU]]&"*",'QB Report'!C:C,0)) ->  | X11: =Table_Query_from_AdvancePro_DB4[[#This Row],[Actual Asset Value]]-Table_Query_from_AdvancePro_DB4[[#This Row],[Exp. Asset Value]] -> 
A12: 1284 | B12: 4x20 ABC | C12: 4 ft x 20 ft roll ABC | D12: 400 | E12: 2 | G12: 1 | H12: 1 | I12: 5 | R12: 395 | S12: =INDEX('QB Report'!D:D,MATCH(Table_Query_from_AdvancePro_DB4[[#This Row],[Product SKU]]&"*",'QB Report'!C:C,0)) ->  | T12: 2 | U12: =INDEX('QB Report'!F:F,MATCH(Table_Query_from_AdvancePro_DB4[[#This Row],[Product SKU]]&"*",'QB Report'!C:C,0)) ->  | V12: 790 | W12: =INDEX('QB Report'!H:H,MATCH(Table_Query_from_AdvancePro_DB4[[#This Row],[Product SKU]]&"*",'QB Report'!C:C,0)) ->  | X12: =Table_Query_from_AdvancePro_DB4[[#This Row],[Actual Asset Value]]-Table_Query_from_AdvancePro_DB4[[#This Row],[Exp. Asset Value]] -> 
A13: 1223 | B13: 801000 | C13: AutoClave Green H10 | D13: 10 | E13: 47.4 | F13: 24.77142857 | G13: 1 | H13: 1 | R13: 10 | S13: =INDEX('QB Report'!D:D,MATCH(Table_Query_from_AdvancePro_DB4[[#This Row],[Product SKU]]&"*",'QB Report'!C:C,0)) -> 0 | T13: 24.77142857 | U13: =INDEX('QB Report'!F:F,MATCH(Table_Query_from_AdvancePro_DB4[[#This Row],[Product SKU]]&"*",'QB Report'!C:C,0)) -> 3.4 | V13: 247.7142857 | W13: =INDEX('QB Report'!H:H,MATCH(Table_Query_from_AdvancePro_DB4[[#This Row],[Product SKU]]&"*",'QB Report'!C:C,0)) -> 0 | X13: =Table_Query_from_AdvancePro_DB4[[#This Row],[Actual Asset Value]]-Table_Query_from_AdvancePro_DB4[[#This Row],[Exp. Asset Value]] -> -247.7142857
A14: 1224 | B14: 803000 | C14: Calcined H10 | D14: 25 | E14: 13.4 | F14: 34.00606061 | G14: 1 | H14: 1 | R14: 25 | S14: =INDEX('QB Report'!D:D,MATCH(Table_Query_from_AdvancePro_DB4[[#This Row],[Product SKU]]&"*",'QB Report'!C:C,0)) -> 0 | T14: 34.00606061 | U14: =INDEX('QB Report'!F:F,MATCH(Table_Query_from_AdvancePro_DB4[[#This Row],[Product SKU]]&"*",'QB Report'!C:C,0)) -> 3.4 | V14: 850.1515152 | W14: =INDEX('QB Report'!H:H,MATCH(Table_Query_from_AdvancePro_DB4[[#This Row],[Product SKU]]&"*",'QB Report'!C:C,0)) -> 0 | X14: =Table_Query_from_AdvancePro_DB4[[#This Row],[Actual Asset Value]]-Table_Query_from_AdvancePro_DB4[[#This Row],[Exp. Asset Value]] -> -850.1515152
A15: 1243 | B15: ABM-04 | C15: Alabaster Black - Marble - 3/4 in - 110 x 54 inches | D15: 0 | E15: 0 | G15: 1 | H15: 1 | R15: 0 | S15: =INDEX('QB Report'!D:D,MATCH(Table_Query_from_AdvancePro_DB4[[#This Row],[Product SKU]]&"*",'QB Report'!C:C,0)) -> 0 | T15: 0 | U15: =INDEX('QB Report'!F:F,MATCH(Table_Query_from_AdvancePro_DB4[[#This Row],[Product SKU]]&"*",'QB Report'!C:C,0)) -> 0 | V15: 0 | W15: =INDEX('QB Report'!H:H,MATCH(Table_Query_from_AdvancePro_DB4[[#This Row],[Product SKU]]&"*",'QB Report'!C:C,0)) -> 0 | X15: =Table_Query_from_AdvancePro_DB4[[#This Row],[Actual Asset Value]]-Table_Query_from_AdvancePro_DB4[[#This Row],[Exp. Asset Value]] -> 0
A16: 1221 | B16: ASSEM0002 | C16: Assembly Item 2 | D16: 2 | E16: 2 | F16: 2 | G16: 1 | H16: 1 | I16: 1 | R16: 1 | S16: =INDEX('QB Report'!D:D,MATCH(Table_Query_from_AdvancePro_DB4[[#This Row],[Product SKU]]&"*",'QB Report'!C:C,0)) -> 0 | T16: 2 | U16: =INDEX('QB Report'!F:F,MATCH(Table_Query_from_AdvancePro_DB4[[#This Row],[Product SKU]]&"*",'QB Report'!C:C,0)) -> 0 | V16: 2 | W16: =INDEX('QB Report'!H:H,MATCH(Table_Query_from_AdvancePro_DB4[[#This Row],[Product SKU]]&"*",'QB Report'!C:C,0)) -> 0 | X16: =Table_Query_from_AdvancePro_DB4[[#This Row],[Actual Asset Value]]-Table_Query_from_AdvancePro_DB4[[#This Row],[Exp. Asset Value]] -> -2
A17: 1219 | B17: ASSEM001 | C17: Test Assembly | D17: 1 | E17: 17 | F17: 17 | G17: 1 | H17: 1 | R17: 1 | S17: =INDEX('QB Report'!D:D,MATCH(Table_Query_from_AdvancePro_DB4[[#This Row],[Product SKU]]&"*",'QB Report'!C:C,0)) -> 0 | T17: 17 | U17: =INDEX('QB Report'!F:F,MATCH(Table_Query_from_AdvancePro_DB4[[#This Row],[Product SKU]]&"*",'QB Report'!C:C,0)) -> 0 | V17: 17 | W17: =INDEX('QB Report'!H:H,MATCH(Table_Query_from_AdvancePro_DB4[[#This Row],[Product SKU]]&"*",'QB Report'!C:C,0)) -> 0 | X17: =Table_Query_from_AdvancePro_DB4[[#This Row],[Actual Asset Value]]-Table_Query_from_AdvancePro_DB4[[#This Row],[Exp. Asset Value]] -> -17
A18: 1093 | B18: AWA51 | C18: Alienware Area 51 Computer | D18: 2010 | E18: 167 | F18: 34.3499019 | G18: 1 | H18: 1 | I18: 201 | M18: 16 | O18: 10 | R18: 1835 | S18: =INDEX('QB Report'!D:D,MATCH(Table_Query_from_AdvancePro_DB4[[#This Row],[Product SKU]]&"*",'QB Report'!C:C,0)) -> 1540 | T18: 34.3499019 | U18: =INDEX('QB Report'!F:F,MATCH(Table_Query_from_AdvancePro_DB4[[#This Row],[Product SKU]]&"*",'QB Report'!C:C,0)) -> 34 | V18: 63032.06998 | W18: =INDEX('QB Report'!H:H,MATCH(Table_Query_from_AdvancePro_DB4[[#This Row],[Product SKU]]&"*",'QB Report'!C:C,0)) -> 52360 | X18: =Table_Query_from_AdvancePro_DB4[[#This Row],[Actual Asset Value]]-Table_Query_from_AdvancePro_DB4[[#This Row],[Exp. Asset Value]] -> -10672.06998
A19: 1170 | B19: B-11 | C19: B 11 | D19: 255 | E19: 1.2345678 | F19: 0.09900990099 | G19: 1 | H19: 1 | I19: 1006 | M19: 3 | R19: -748 | S19: =INDEX('QB Report'!D:D,MATCH(Table_Query_from_AdvancePro_DB4[[#This Row],[Product SKU]]&"*",'QB Report'!C:C,0)) -> 100 | T19: 0.09900990099 | U19: =INDEX('QB Report'!F:F,MATCH(Table_Query_from_AdvancePro_DB4[[#This Row],[Product SKU]]&"*",'QB Report'!C:C,0)) -> 0 | V19: -74.05940594 | W19: =INDEX('QB Report'!H:H,MATCH(Table_Query_from_AdvancePro_DB4[[#This Row],[Product SKU]]&"*",'QB Report'!C:C,0)) -> 0 | X19: =Table_Query_from_AdvancePro_DB4[[#This Row],[Actual Asset Value]]-Table_Query_from_AdvancePro_DB4[[#This Row],[Exp. Asset Value]] -> 74.05940594
A20: 1275 | B20: B-218/B-514 5 1/4'' Mdf Base 4608' per unit | C20: B-218/B-514 5 1/4'' Mdf Base 4608' per unit | D20: 1000 | E20: 0 | G20: 1 | H20: 0 | R20: 1000 | S20: =INDEX('QB Report'!D:D,MATCH(Table_Query_from_AdvancePro_DB4[[#This Row],[Product SKU]]&"*",'QB Report'!C:C,0)) ->  | T20: 0 | U20: =INDEX('QB Report'!F:F,MATCH(Table_Query_from_AdvancePro_DB4[[#This Row],[Product SKU]]&"*",'QB Report'!C:C,0)) ->  | V20: 0 | W20: =INDEX('QB Report'!H:H,MATCH(Table_Query_from_AdvancePro_DB4[[#This Row],[Product SKU]]&"*",'QB Report'!C:C,0)) ->  | X20: =Table_Query_from_AdvancePro_DB4[[#This Row],[Actual Asset Value]]-Table_Query_from_AdvancePro_DB4[[#This Row],[Exp. Asset Value]] -> 
A21: 1214 | B21: B-487 | C21: Glass Bauble | D21: 8 | E21: 300 | F21: 300 | G21: 1 | H21: 1 | R21: 8 | S21: =INDEX('QB Report'!D:D,MATCH(Table_Query_from_AdvancePro_DB4[[#This Row],[Product SKU]]&"*",'QB Report'!C:C,0)) -> 8 | T21: 300 | U21: =INDEX('QB Report'!F:F,MATCH(Table_Query_from_AdvancePro_DB4[[#This Row],[Product SKU]]&"*",'QB Report'!C:C,0)) -> 300 | V21: 2400 | W21: =INDEX('QB Report'!H:H,MATCH(Table_Query_from_AdvancePro_DB4[[#This Row],[Product SKU]]&"*",'QB Report'!C:C,0)) -> 2400 | X21: =Table_Query_from_AdvancePro_DB4[[#This Row],[Actual Asset Value]]-Table_Query_from_AdvancePro_DB4[[#This Row],[Exp. Asset Value]] -> 0
A22: 1215 | B22: B-678 | C22: Baseball Card | D22: 0 | E22: 50 | G22: 1 | H22: 1 | R22: 0 | S22: =INDEX('QB Report'!D:D,MATCH(Table_Query_from_AdvancePro_DB4[[#This Row],[Product SKU]]&"*",'QB Report'!C:C,0)) -> 0 | T22: 50 | U22: =INDEX('QB Report'!F:F,MATCH(Table_Query_from_AdvancePro_DB4[[#This Row],[Product SKU]]&"*",'QB Report'!C:C,0)) -> 0 | V22: 0 | W22: =INDEX('QB Report'!H:H,MATCH(Table_Query_from_AdvancePro_DB4[[#This Row],[Product SKU]]&"*",'QB Report'!C:C,0)) -> 0 | X22: =Table_Query_from_AdvancePro_DB4[[#This Row],[Actual Asset Value]]-Table_Query_from_AdvancePro_DB4[[#This Row],[Exp. Asset Value]] -> 0
A23: 1129 | B23: B-9.50 | C23: 9.50 Burner | D23: 100 | E23: 167 | G23: 1 | H23: 1 | R23: 100 | S23: =INDEX('QB Report'!D:D,MATCH(Table_Query_from_AdvancePro_DB4[[#This Row],[Product SKU]]&"*",'QB Report'!C:C,0)) -> 100 | T23: 167 | U23: =INDEX('QB Report'!F:F,MATCH(Table_Query_from_AdvancePro_DB4[[#This Row],[Product SKU]]&"*",'QB Report'!C:C,0)) -> 34 | V23: 16700 | W23: =INDEX('QB Report'!H:H,MATCH(Table_Query_from_AdvancePro_DB4[[#This Row],[Product SKU]]&"*",'QB Report'!C:C,0)) -> 3400 | X23: =Table_Query_from_AdvancePro_DB4[[#This Row],[Actual Asset Value]]-Table_Query_from_AdvancePro_DB4[[#This Row],[Exp. Asset Value]] -> -13300
A24: 1251 | B24: BASIC-ASSEMBLY | C24: Basic Assembly | D24: 202 | E24: 0 | F24: 6.5 | G24: 1 | H24: 1 | R24: 202 | S24: =INDEX('QB Report'!D:D,MATCH(Table_Query_from_AdvancePro_DB4[[#This Row],[Product SKU]]&"*",'QB Report'!C:C,0)) ->  | T24: 6.5 | U24: =INDEX('QB Report'!F:F,MATCH(Table_Query_from_AdvancePro_DB4[[#This Row],[Product SKU]]&"*",'QB Report'!C:C,0)) ->  | V24: 1313 | W24: =INDEX('QB Report'!H:H,MATCH(Table_Query_from_AdvancePro_DB4[[#This Row],[Product SKU]]&"*",'QB Report'!C:C,0)) ->  | X24: =Table_Query_from_AdvancePro_DB4[[#This Row],[Actual Asset Value]]-Table_Query_from_AdvancePro_DB4[[#This Row],[Exp. Asset Value]] -> 
A25: 1207 | B25: BASSWOOD | C25: BASSWOOD | D25: 250 | E25: 0 | G25: 1 | H25: 1 | M25: 1 | R25: 251 | S25: =INDEX('QB Report'!D:D,MATCH(Table_Query_from_AdvancePro_DB4[[#This Row],[Product SKU]]&"*",'QB Report'!C:C,0)) -> 100 | T25: 0 | U25: =INDEX('QB Report'!F:F,MATCH(Table_Query_from_AdvancePro_DB4[[#This Row],[Product SKU]]&"*",'QB Report'!C:C,0)) -> 0 | V25: 0 | W25: =INDEX('QB Report'!H:H,MATCH(Table_Query_from_AdvancePro_DB4[[#This Row],[Product SKU]]&"*",'QB Report'!C:C,0)) -> 0 | X25: =Table_Query_from_AdvancePro_DB4[[#This Row],[Actual Asset Value]]-Table_Query_from_AdvancePro_DB4[[#This Row],[Exp. Asset Value]] -> 0
A26: 1242 | B26: BBG-01 | C26: Baltic Brown - Granite - 3/4in - 73 x 118 inches | D26: 51 | E26: 0 | F26: 0 | G26: 1 | H26: 1 | M26: 1 | R26: 52 | S26: =INDEX('QB Report'!D:D,MATCH(Table_Query_from_AdvancePro_DB4[[#This Row],[Product SKU]]&"*",'QB Report'!C:C,0)) -> 51 | T26: 0 | U26: =INDEX('QB Report'!F:F,MATCH(Table_Query_from_AdvancePro_DB4[[#This Row],[Product SKU]]&"*",'QB Report'!C:C,0)) -> 0 | V26: 0 | W26: =INDEX('QB Report'!H:H,MATCH(Table_Query_from_AdvancePro_DB4[[#This Row],[Product SKU]]&"*",'QB Report'!C:C,0)) -> 0 | X26: =Table_Query_from_AdvancePro_DB4[[#This Row],[Actual Asset Value]]-Table_Query_from_AdvancePro_DB4[[#This Row],[Exp. Asset Value]] -> 0
A27: 1066 | B27: BCPotatoes | C27: Betty Crocker Au Gratin Potatoes | D27: 79.1 | E27: 7 | G27: 1 | H27: 1 | M27: 17 | R27: 96.1 | S27: =INDEX('QB Report'!D:D,MATCH(Table_Query_from_AdvancePro_DB4[[#This Row],[Product SKU]]&"*",'QB Report'!C:C,0)) -> 148 | T27: 7 | U27: =INDEX('QB Report'!F:F,MATCH(Table_Query_from_AdvancePro_DB4[[#This Row],[Product SKU]]&"*",'QB Report'!C:C,0)) -> 7 | V27: 672.7 | W27: =INDEX('QB Report'!H:H,MATCH(Table_Query_from_AdvancePro_DB4[[#This Row],[Product SKU]]&"*",'QB Report'!C:C,0)) -> 1036 | X27: =Table_Query_from_AdvancePro_DB4[[#This Row],[Actual Asset Value]]-Table_Query_from_AdvancePro_DB4[[#This Row],[Exp. Asset Value]] -> 363.3
A28: 1067 | B28: BD001 | C28: BLACK & DECKER 20-Volt Max 3/8-in Cordless Battery Included Drill | D28: 17 | E28: 1 | F28: 1 | G28: 1 | H28: 1 | I28: 1 | J28: 7 | R28: 9 | S28: =INDEX('QB Report'!D:D,MATCH(Table_Query_from_AdvancePro_DB4[[#This Row],[Product SKU]]&"*",'QB Report'!C:C,0)) -> 31.0001 | T28: 1 | U28: =INDEX('QB Report'!F:F,MATCH(Table_Query_from_AdvancePro_DB4[[#This Row],[Product SKU]]&"*",'QB Report'!C:C,0)) -> 1 | V28: 9 | W28: =INDEX('QB Report'!H:H,MATCH(Table_Query_from_AdvancePro_DB4[[#This Row],[Product SKU]]&"*",'QB Report'!C:C,0)) -> 31 | X28: =Table_Query_from_AdvancePro_DB4[[#This Row],[Actual Asset Value]]-Table_Query_from_AdvancePro_DB4[[#This Row],[Exp. Asset Value]] -> 22
A29: 1277 | B29: BOB | C29: BOB SAMPLE | D29: 10 | E29: 1 | G29: 1 | H29: 1 | I29: 10 | R29: 0 | S29: =INDEX('QB Report'!D:D,MATCH(Table_Query_from_AdvancePro_DB4[[#This Row],[Product SKU]]&"*",'QB Report'!C:C,0)) -> 100 | T29: 1 | U29: =INDEX('QB Report'!F:F,MATCH(Table_Query_from_AdvancePro_DB4[[#This Row],[Product SKU]]&"*",'QB Report'!C:C,0)) -> 0.01 | V29: 0 | W29: =INDEX('QB Report'!H:H,MATCH(Table_Query_from_AdvancePro_DB4[[#This Row],[Product SKU]]&"*",'QB Report'!C:C,0)) -> 1 | X29: =Table_Query_from_AdvancePro_DB4[[#This Row],[Actual Asset Value]]-Table_Query_from_AdvancePro_DB4[[#This Row],[Exp. Asset Value]] -> 1
A30: 1279 | B30: BOB2 | C30: BOBSAMPLE-2 | D30: 99 | E30: 10 | G30: 1 | H30: 1 | M30: 1 | R30: 100 | S30: =INDEX('QB Report'!D:D,MATCH(Table_Query_from_AdvancePro_DB4[[#This Row],[Product SKU]]&"*",'QB Report'!C:C,0)) ->  | T30: 10 | U30: =INDEX('QB Report'!F:F,MATCH(Table_Query_from_AdvancePro_DB4[[#This Row],[Product SKU]]&"*",'QB Report'!C:C,0)) ->  | V30: 1000 | W30: =INDEX('QB Report'!H:H,MATCH(Table_Query_from_AdvancePro_DB4[[#This Row],[Product SKU]]&"*",'QB Report'!C:C,0)) ->  | X30: =Table_Query_from_AdvancePro_DB4[[#This Row],[Actual Asset Value]]-Table_Query_from_AdvancePro_DB4[[#This Row],[Exp. Asset Value]] -> 
A31: 1195 | B31: BOB-BRIDGE | C31: BOB-BRIDGE | D31: 99 | E31: 0.01 | G31: 1 | H31: 1 | M31: 1 | R31: 100 | S31: =INDEX('QB Report'!D:D,MATCH(Table_Query_from_AdvancePro_DB4[[#This Row],[Product SKU]]&"*",'QB Report'!C:C,0)) -> 100 | T31: 0.01 | U31: =INDEX('QB Report'!F:F,MATCH(Table_Query_from_AdvancePro_DB4[[#This Row],[Product SKU]]&"*",'QB Report'!C:C,0)) -> 0.01 | V31: 1 | W31: =INDEX('QB Report'!H:H,MATCH(Table_Query_from_AdvancePro_DB4[[#This Row],[Product SKU]]&"*",'QB Report'!C:C,0)) -> 1 | X31: =Table_Query_from_AdvancePro_DB4[[#This Row],[Actual Asset Value]]-Table_Query_from_AdvancePro_DB4[[#This Row],[Exp. Asset Value]] -> 0
A32: 1176 | B32: BOB-TAB-CORE | C32: BOB-TAB-CORE | D32: 99 | E32: 0.35 | G32: 1 | H32: 1 | R32: 99 | S32: =INDEX('QB Report'!D:D,MATCH(Table_Query_from_AdvancePro_DB4[[#This Row],[Product SKU]]&"*",'QB Report'!C:C,0)) -> 99 | T32: 0.35 | U32: =INDEX('QB Report'!F:F,MATCH(Table_Query_from_AdvancePro_DB4[[#This Row],[Product SKU]]&"*",'QB Report'!C:C,0)) -> 0.17 | V32: 34.65 | W32: =INDEX('QB Report'!H:H,MATCH(Table_Query_from_AdvancePro_DB4[[#This Row],[Product SKU]]&"*",'QB Report'!C:C,0)) -> 16.48 | X32: =Table_Query_from_AdvancePro_DB4[[#This Row],[Actual Asset Value]]-Table_Query_from_AdvancePro_DB4[[#This Row],[Exp. Asset Value]] -> -18.17
A33: 1179 | B33: BOB-TAB-TOP | C33: BOB-TAB-TOP | D33: 99 | E33: 0.1336 | G33: 1 | H33: 1 | M33: 1 | R33: 100 | S33: =INDEX('QB Report'!D:D,MATCH(Table_Query_from_AdvancePro_DB4[[#This Row],[Product SKU]]&"*",'QB Report'!C:C,0)) -> 100 | T33: 0.1336 | U33: =INDEX('QB Report'!F:F,MATCH(Table_Query_from_AdvancePro_DB4[[#This Row],[Product SKU]]&"*",'QB Report'!C:C,0)) -> 0.13 | V33: 13.36 | W33: =INDEX('QB Report'!H:H,MATCH(Table_Query_from_AdvancePro_DB4[[#This Row],[Product SKU]]&"*",'QB Report'!C:C,0)) -> 13.36 | X33: =Table_Query_from_AdvancePro_DB4[[#This Row],[Actual Asset Value]]-Table_Query_from_AdvancePro_DB4[[#This Row],[Exp. Asset Value]] -> 0
A34: 1178 | B34: BOB-TAB-UNWOUND | C34: BOB-TAB-UNWOUND | D34: 100 | E34: 0.3001 | G34: 1 | H34: 1 | R34: 100 | S34: =INDEX('QB Report'!D:D,MATCH(Table_Query_from_AdvancePro_DB4[[#This Row],[Product SKU]]&"*",'QB Report'!C:C,0)) -> 100 | T34: 0.3001 | U34: =INDEX('QB Report'!F:F,MATCH(Table_Query_from_AdvancePro_DB4[[#This Row],[Product SKU]]&"*",'QB Report'!C:C,0)) -> 0.3 | V34: 30.01 | W34: =INDEX('QB Report'!H:H,MATCH(Table_Query_from_AdvancePro_DB4[[#This Row],[Product SKU]]&"*",'QB Report'!C:C,0)) -> 30.01 | X34: =Table_Query_from_AdvancePro_DB4[[#This Row],[Actual Asset Value]]-Table_Query_from_AdvancePro_DB4[[#This Row],[Exp. Asset Value]] -> 0
A35: 1180 | B35: BOB-TAB-WOUND | C35: BOB-TAB-WOUND | D35: 99 | E35: 3.6 | G35: 1 | H35: 1 | R35: 99 | S35: =INDEX('QB Report'!D:D,MATCH(Table_Query_from_AdvancePro_DB4[[#This Row],[Product SKU]]&"*",'QB Report'!C:C,0)) -> 99 | T35: 3.6 | U35: =INDEX('QB Report'!F:F,MATCH(Table_Query_from_AdvancePro_DB4[[#This Row],[Product SKU]]&"*",'QB Report'!C:C,0)) -> 0.85 | V35: 356.4 | W35: =INDEX('QB Report'!H:H,MATCH(Table_Query_from_AdvancePro_DB4[[#This Row],[Product SKU]]&"*",'QB Report'!C:C,0)) -> 83.76 | X35: =Table_Query_from_AdvancePro_DB4[[#This Row],[Actual Asset Value]]-Table_Query_from_AdvancePro_DB4[[#This Row],[Exp. Asset Value]] -> -272.64
A36: 1265 | B36: BOTTLE | C36: BOTTLE | D36: 1000 | E36: 0 | G36: 1 | H36: 1 | R36: 1000 | S36: =INDEX('QB Report'!D:D,MATCH(Table_Query_from_AdvancePro_DB4[[#This Row],[Product SKU]]&"*",'QB Report'!C:C,0)) ->  | T36: 0 | U36: =INDEX('QB Report'!F:F,MATCH(Table_Query_from_AdvancePro_DB4[[#This Row],[Product SKU]]&"*",'QB Report'!C:C,0)) ->  | V36: 0 | W36: =INDEX('QB Report'!H:H,MATCH(Table_Query_from_AdvancePro_DB4[[#This Row],[Product SKU]]&"*",'QB Report'!C:C,0)) ->  | X36: =Table_Query_from_AdvancePro_DB4[[#This Row],[Actual Asset Value]]-Table_Query_from_AdvancePro_DB4[[#This Row],[Exp. Asset Value]] -> 
A37: 1217 | B37: BREAKER | C37: BREAKER | D37: 1 | E37: 0 | F37: 0 | G37: 1 | H37: 1 | R37: 1 | S37: =INDEX('QB Report'!D:D,MATCH(Table_Query_from_AdvancePro_DB4[[#This Row],[Product SKU]]&"*",'QB Report'!C:C,0)) -> 1 | T37: 0 | U37: =INDEX('QB Report'!F:F,MATCH(Table_Query_from_AdvancePro_DB4[[#This Row],[Product SKU]]&"*",'QB Report'!C:C,0)) -> 0 | V37: 0 | W37: =INDEX('QB Report'!H:H,MATCH(Table_Query_from_AdvancePro_DB4[[#This Row],[Product SKU]]&"*",'QB Report'!C:C,0)) -> 0 | X37: =Table_Query_from_AdvancePro_DB4[[#This Row],[Actual Asset Value]]-Table_Query_from_AdvancePro_DB4[[#This Row],[Exp. Asset Value]] -> 0
A38: 1065 | B38: BSODA | C38: Arm & Hammer Baking Soda | D38: 573 | E38: 2 | F38: 2 | G38: 1 | H38: 1 | I38: 1 | M38: 6 | R38: 578 | S38: =INDEX('QB Report'!D:D,MATCH(Table_Query_from_AdvancePro_DB4[[#This Row],[Product SKU]]&"*",'QB Report'!C:C,0)) -> 590.00005 | T38: 2 | U38: =INDEX('QB Report'!F:F,MATCH(Table_Query_from_AdvancePro_DB4[[#This Row],[Product SKU]]&"*",'QB Report'!C:C,0)) -> 2 | V38: 1156 | W38: =INDEX('QB Report'!H:H,MATCH(Table_Query_from_AdvancePro_DB4[[#This Row],[Product SKU]]&"*",'QB Report'!C:C,0)) -> 1180 | X38: =Table_Query_from_AdvancePro_DB4[[#This Row],[Actual Asset Value]]-Table_Query_from_AdvancePro_DB4[[#This Row],[Exp. Asset Value]] -> 24
A39: 1100 | B39: BYOPC | C39: Build your own PC kit | D39: 0 | G39: 1 | H39: 1 | R39: 0 | S39: =INDEX('QB Report'!D:D,MATCH(Table_Query_from_AdvancePro_DB4[[#This Row],[Product SKU]]&"*",'QB Report'!C:C,0)) ->  | U39: =INDEX('QB Report'!F:F,MATCH(Table_Query_from_AdvancePro_DB4[[#This Row],[Product SKU]]&"*",'QB Report'!C:C,0)) ->  | W39: =INDEX('QB Report'!H:H,MATCH(Table_Query_from_AdvancePro_DB4[[#This Row],[Product SKU]]&"*",'QB Report'!C:C,0)) ->  | X39: =Table_Query_from_AdvancePro_DB4[[#This Row],[Actual Asset Value]]-Table_Query_from_AdvancePro_DB4[[#This Row],[Exp. Asset Value]] -> 
A40: 1069 | B40: CEOSRT3 | C40: CANNON EOS Rebel T3 | D40: 92 | E40: 100 | G40: 1 | H40: 1 | M40: 11 | R40: 103 | S40: =INDEX('QB Report'!D:D,MATCH(Table_Query_from_AdvancePro_DB4[[#This Row],[Product SKU]]&"*",'QB Report'!C:C,0)) -> 105 | T40: 100 | U40: =INDEX('QB Report'!F:F,MATCH(Table_Query_from_AdvancePro_DB4[[#This Row],[Product SKU]]&"*",'QB Report'!C:C,0)) -> 100 | V40: 10300 | W40: =INDEX('QB Report'!H:H,MATCH(Table_Query_from_AdvancePro_DB4[[#This Row],[Product SKU]]&"*",'QB Report'!C:C,0)) -> 10500 | X40: =Table_Query_from_AdvancePro_DB4[[#This Row],[Actual Asset Value]]-Table_Query_from_AdvancePro_DB4[[#This Row],[Exp. Asset Value]] -> 200
A41: 1250 | B41: CFB360NG | C41: CFB360NG | D41: 0 | G41: 1 | H41: 1 | M41: 2 | R41: 2 | S41: =INDEX('QB Report'!D:D,MATCH(Table_Query_from_AdvancePro_DB4[[#This Row],[Product SKU]]&"*",'QB Report'!C:C,0)) ->  | U41: =INDEX('QB Report'!F:F,MATCH(Table_Query_from_AdvancePro_DB4[[#This Row],[Product SKU]]&"*",'QB Report'!C:C,0)) ->  | W41: =INDEX('QB Report'!H:H,MATCH(Table_Query_from_AdvancePro_DB4[[#This Row],[Product SKU]]&"*",'QB Report'!C:C,0)) ->  | X41: =Table_Query_from_AdvancePro_DB4[[#This Row],[Actual Asset Value]]-Table_Query_from_AdvancePro_DB4[[#This Row],[Exp. Asset Value]] -> 
A42: 1276 | B42: Closet Rod 1 1/4'' wood round pole | C42: Closet Rod 1 1/4'' wood round pole | D42: 1000 | E42: 0 | G42: 1 | H42: 0 | R42: 1000 | S42: =INDEX('QB Report'!D:D,MATCH(Table_Query_from_AdvancePro_DB4[[#This Row],[Product SKU]]&"*",'QB Report'!C:C,0)) ->  | T42: 0 | U42: =INDEX('QB Report'!F:F,MATCH(Table_Query_from_AdvancePro_DB4[[#This Row],[Product SKU]]&"*",'QB Report'!C:C,0)) ->  | V42: 0 | W42: =INDEX('QB Report'!H:H,MATCH(Table_Query_from_AdvancePro_DB4[[#This Row],[Product SKU]]&"*",'QB Report'!C:C,0)) ->  | X42: =Table_Query_from_AdvancePro_DB4[[#This Row],[Actual Asset Value]]-Table_Query_from_AdvancePro_DB4[[#This Row],[Exp. Asset Value]] -> 
A43: 1070 | B43: CN5012 | C43: Canon 50mm 1.2L Lens | D43: 95 | E43: 1100 | G43: 1 | H43: 1 | R43: 95 | S43: =INDEX('QB Report'!D:D,MATCH(Table_Query_from_AdvancePro_DB4[[#This Row],[Product SKU]]&"*",'QB Report'!C:C,0)) -> 100 | T43: 1100 | U43: =INDEX('QB Report'!F:F,MATCH(Table_Query_from_AdvancePro_DB4[[#This Row],[Product SKU]]&"*",'QB Report'!C:C,0)) -> 1100 | V43: 104500 | W43: =INDEX('QB Report'!H:H,MATCH(Table_Query_from_AdvancePro_DB4[[#This Row],[Product SKU]]&"*",'QB Report'!C:C,0)) -> 110000 | X43: =Table_Query_from_AdvancePro_DB4[[#This Row],[Actual Asset Value]]-Table_Query_from_AdvancePro_DB4[[#This Row],[Exp. Asset Value]] -> 5500
A44: 1071 | B44: CN600EX | C44: Canon Speedlite 600EX-RT Flash | D44: 20 | E44: 300 | G44: 1 | H44: 1 | I44: 6 | R44: 14 | S44: =INDEX('QB Report'!D:D,MATCH(Table_Query_from_AdvancePro_DB4[[#This Row],[Product SKU]]&"*",'QB Report'!C:C,0)) -> 14 | T44: 300 | U44: =INDEX('QB Report'!F:F,MATCH(Table_Query_from_AdvancePro_DB4[[#This Row],[Product SKU]]&"*",'QB Report'!C:C,0)) -> 300 | V44: 4200 | W44: =INDEX('QB Report'!H:H,MATCH(Table_Query_from_AdvancePro_DB4[[#This Row],[Product SKU]]&"*",'QB Report'!C:C,0)) -> 4200 | X44: =Table_Query_from_AdvancePro_DB4[[#This Row],[Actual Asset Value]]-Table_Query_from_AdvancePro_DB4[[#This Row],[Exp. Asset Value]] -> 0
A45: 1241 | B45: CO296 | C45: Black Antique - Granite - 3/4 in - 112 x 71 inches | D45: 10 | E45: 0 | G45: 1 | H45: 1 | J45: 29 | N45: 29 | R45: 10 | S45: =INDEX('QB Report'!D:D,MATCH(Table_Query_from_AdvancePro_DB4[[#This Row],[Product SKU]]&"*",'QB Report'!C:C,0)) -> 1 | T45: 0 | U45: =INDEX('QB Report'!F:F,MATCH(Table_Query_from_AdvancePro_DB4[[#This Row],[Product SKU]]&"*",'QB Report'!C:C,0)) -> 0 | V45: 0 | W45: =INDEX('QB Report'!H:H,MATCH(Table_Query_from_AdvancePro_DB4[[#This Row],[Product SKU]]&"*",'QB Report'!C:C,0)) -> 0 | X45: =Table_Query_from_AdvancePro_DB4[[#This Row],[Actual Asset Value]]-Table_Query_from_AdvancePro_DB4[[#This Row],[Exp. Asset Value]] -> 0
A46: 1244 | B46: CT044 | C46: Bianco Pentelico - Marble - 3/4 in - 116 x 76 inches | D46: 0 | E46: 0 | G46: 1 | H46: 1 | M46: 1 | R46: 1 | S46: =INDEX('QB Report'!D:D,MATCH(Table_Query_from_AdvancePro_DB4[[#This Row],[Product SKU]]&"*",'QB Report'!C:C,0)) -> 1 | T46: 0 | U46: =INDEX('QB Report'!F:F,MATCH(Table_Query_from_AdvancePro_DB4[[#This Row],[Product SKU]]&"*",'QB Report'!C:C,0)) -> 0 | V46: 0 | W46: =INDEX('QB Report'!H:H,MATCH(Table_Query_from_AdvancePro_DB4[[#This Row],[Product SKU]]&"*",'QB Report'!C:C,0)) -> 0 | X46: =Table_Query_from_AdvancePro_DB4[[#This Row],[Actual Asset Value]]-Table_Query_from_AdvancePro_DB4[[#This Row],[Exp. Asset Value]] -> 0
A47: 1288 | B47: custom kit abc | C47: custom kit abc | D47: 0 | G47: 1 | H47: 1 | R47: 0 | S47: =INDEX('QB Report'!D:D,MATCH(Table_Query_from_AdvancePro_DB4[[#This Row],[Product SKU]]&"*",'QB Report'!C:C,0)) ->  | U47: =INDEX('QB Report'!F:F,MATCH(Table_Query_from_AdvancePro_DB4[[#This Row],[Product SKU]]&"*",'QB Report'!C:C,0)) ->  | W47: =INDEX('QB Report'!H:H,MATCH(Table_Query_from_AdvancePro_DB4[[#This Row],[Product SKU]]&"*",'QB Report'!C:C,0)) ->  | X47: =Table_Query_from_AdvancePro_DB4[[#This Row],[Actual Asset Value]]-Table_Query_from_AdvancePro_DB4[[#This Row],[Exp. Asset Value]] -> 
A48: 1232 | B48: cuztom xyz | C48: custom xyz | D48: 0 | E48: 23 | G48: 1 | H48: 1 | R48: 0 | S48: =INDEX('QB Report'!D:D,MATCH(Table_Query_from_AdvancePro_DB4[[#This Row],[Product SKU]]&"*",'QB Report'!C:C,0)) -> 0 | T48: 23 | U48: =INDEX('QB Report'!F:F,MATCH(Table_Query_from_AdvancePro_DB4[[#This Row],[Product SKU]]&"*",'QB Report'!C:C,0)) -> 0 | V48: 0 | W48: =INDEX('QB Report'!H:H,MATCH(Table_Query_from_AdvancePro_DB4[[#This Row],[Product SKU]]&"*",'QB Report'!C:C,0)) -> 0 | X48: =Table_Query_from_AdvancePro_DB4[[#This Row],[Actual Asset Value]]-Table_Query_from_AdvancePro_DB4[[#This Row],[Exp. Asset Value]] -> 0
A49: 1150 | B49: CVR-DYNA-B-GOLD | C49: CVR-DYNA-B-GOLD | D49: 100 | E49: 10 | F49: 6 | G49: 1 | H49: 1 | R49: 100 | S49: =INDEX('QB Report'!D:D,MATCH(Table_Query_from_AdvancePro_DB4[[#This Row],[Product SKU]]&"*",'QB Report'!C:C,0)) -> 100 | T49: 6 | U49: =INDEX('QB Report'!F:F,MATCH(Table_Query_from_AdvancePro_DB4[[#This Row],[Product SKU]]&"*",'QB Report'!C:C,0)) -> 10 | V49: 600 | W49: =INDEX('QB Report'!H:H,MATCH(Table_Query_from_AdvancePro_DB4[[#This Row],[Product SKU]]&"*",'QB Report'!C:C,0)) -> 1000 | X49: =Table_Query_from_AdvancePro_DB4[[#This Row],[Actual Asset Value]]-Table_Query_from_AdvancePro_DB4[[#This Row],[Exp. Asset Value]] -> 400
A50: 1139 | B50: CVR-DYN-B | C50: DYNA COVER TALL | D50: 140 | E50: 1 | G50: 1 | H50: 1 | I50: 45 | R50: 95 | S50: =INDEX('QB Report'!D:D,MATCH(Table_Query_from_AdvancePro_DB4[[#This Row],[Product SKU]]&"*",'QB Report'!C:C,0)) -> 100 | T50: 1 | U50: =INDEX('QB Report'!F:F,MATCH(Table_Query_from_AdvancePro_DB4[[#This Row],[Product SKU]]&"*",'QB Report'!C:C,0)) -> 1 | V50: 95 | W50: =INDEX('QB Report'!H:H,MATCH(Table_Query_from_AdvancePro_DB4[[#This Row],[Product SKU]]&"*",'QB Report'!C:C,0)) -> 100 | X50: =Table_Query_from_AdvancePro_DB4[[#This Row],[Actual Asset Value]]-Table_Query_from_AdvancePro_DB4[[#This Row],[Exp. Asset Value]] -> 5
A51: 1141 | B51: CVR-DYN-B-GLD | C51: PLATING FOR TALL DYNA - GOLD | D51: 140 | E51: 5 | G51: 1 | H51: 1 | I51: 45 | R51: 95 | S51: =INDEX('QB Report'!D:D,MATCH(Table_Query_from_AdvancePro_DB4[[#This Row],[Product SKU]]&"*",'QB Report'!C:C,0)) -> 100 | T51: 5 | U51: =INDEX('QB Report'!F:F,MATCH(Table_Query_from_AdvancePro_DB4[[#This Row],[Product SKU]]&"*",'QB Report'!C:C,0)) -> 5 | V51: 475 | W51: =INDEX('QB Report'!H:H,MATCH(Table_Query_from_AdvancePro_DB4[[#This Row],[Product SKU]]&"*",'QB Report'!C:C,0)) -> 500 | X51: =Table_Query_from_AdvancePro_DB4[[#This Row],[Actual Asset Value]]-Table_Query_from_AdvancePro_DB4[[#This Row],[Exp. Asset Value]] -> 25
A52: 1142 | B52: CVR-DYN-CHM | C52: PLATING FOR DYNA SHORT - CHROME | D52: 100 | E52: 3 | G52: 1 | H52: 1 | I52: 1 | R52: 99 | S52: =INDEX('QB Report'!D:D,MATCH(Table_Query_from_AdvancePro_DB4[[#This Row],[Product SKU]]&"*",'QB Report'!C:C,0)) -> 99 | T52: 3 | U52: =INDEX('QB Report'!F:F,MATCH(Table_Query_from_AdvancePro_DB4[[#This Row],[Product SKU]]&"*",'QB Report'!C:C,0)) -> 3 | V52: 297 | W52: =INDEX('QB Report'!H:H,MATCH(Table_Query_from_AdvancePro_DB4[[#This Row],[Product SKU]]&"*",'QB Report'!C:C,0)) -> 297 | X52: =Table_Query_from_AdvancePro_DB4[[#This Row],[Actual Asset Value]]-Table_Query_from_AdvancePro_DB4[[#This Row],[Exp. Asset Value]] -> 0
A53: 1140 | B53: CVR-DYN-N | C53: DYNA COVER SHORT | D53: 100 | E53: 5 | F53: 5 | G53: 1 | H53: 1 | R53: 100 | S53: =INDEX('QB Report'!D:D,MATCH(Table_Query_from_AdvancePro_DB4[[#This Row],[Product SKU]]&"*",'QB Report'!C:C,0)) -> 100 | T53: 5 | U53: =INDEX('QB Report'!F:F,MATCH(Table_Query_from_AdvancePro_DB4[[#This Row],[Product SKU]]&"*",'QB Report'!C:C,0)) -> 5 | V53: 500 | W53: =INDEX('QB Report'!H:H,MATCH(Table_Query_from_AdvancePro_DB4[[#This Row],[Product SKU]]&"*",'QB Report'!C:C,0)) -> 500 | X53: =Table_Query_from_AdvancePro_DB4[[#This Row],[Actual Asset Value]]-Table_Query_from_AdvancePro_DB4[[#This Row],[Exp. Asset Value]] -> 0
A54: 1261 | B54: DHOInst | C54: Downhole Oil Instrument | D54: 0 | E54: 317 | G54: 1 | H54: 1 | R54: 0 | S54: =INDEX('QB Report'!D:D,MATCH(Table_Query_from_AdvancePro_DB4[[#This Row],[Product SKU]]&"*",'QB Report'!C:C,0)) ->  | T54: 317 | U54: =INDEX('QB Report'!F:F,MATCH(Table_Query_from_AdvancePro_DB4[[#This Row],[Product SKU]]&"*",'QB Report'!C:C,0)) ->  | V54: 0 | W54: =INDEX('QB Report'!H:H,MATCH(Table_Query_from_AdvancePro_DB4[[#This Row],[Product SKU]]&"*",'QB Report'!C:C,0)) ->  | X54: =Table_Query_from_AdvancePro_DB4[[#This Row],[Actual Asset Value]]-Table_Query_from_AdvancePro_DB4[[#This Row],[Exp. Asset Value]] -> 
A55: 1074 | B55: DREM001 | C55: Dremel Micro 18-Piece Variable-Speed Multipurpose Rotary Tool Kit | D55: 93 | E55: 150 | G55: 1 | H55: 1 | I55: 1 | M55: 2 | R55: 94 | S55: =INDEX('QB Report'!D:D,MATCH(Table_Query_from_AdvancePro_DB4[[#This Row],[Product SKU]]&"*",'QB Report'!C:C,0)) -> 98 | T55: 150 | U55: =INDEX('QB Report'!F:F,MATCH(Table_Query_from_AdvancePro_DB4[[#This Row],[Product SKU]]&"*",'QB Report'!C:C,0)) -> 150 | V55: 14100 | W55: =INDEX('QB Report'!H:H,MATCH(Table_Query_from_AdvancePro_DB4[[#This Row],[Product SKU]]&"*",'QB Report'!C:C,0)) -> 14700 | X55: =Table_Query_from_AdvancePro_DB4[[#This Row],[Actual Asset Value]]-Table_Query_from_AdvancePro_DB4[[#This Row],[Exp. Asset Value]] -> 600
A56: 1073 | B56: DREM002 | C56: Dremel All-Purpose Rotary Tool Accessory Kit | D56: 94 | E56: 200 | G56: 1 | H56: 1 | R56: 94 | S56: =INDEX('QB Report'!D:D,MATCH(Table_Query_from_AdvancePro_DB4[[#This Row],[Product SKU]]&"*",'QB Report'!C:C,0)) -> 100 | T56: 200 | U56: =INDEX('QB Report'!F:F,MATCH(Table_Query_from_AdvancePro_DB4[[#This Row],[Product SKU]]&"*",'QB Report'!C:C,0)) -> 200 | V56: 18800 | W56: =INDEX('QB Report'!H:H,MATCH(Table_Query_from_AdvancePro_DB4[[#This Row],[Product SKU]]&"*",'QB Report'!C:C,0)) -> 20000 | X56: =Table_Query_from_AdvancePro_DB4[[#This Row],[Actual Asset Value]]-Table_Query_from_AdvancePro_DB4[[#This Row],[Exp. Asset Value]] -> 1200
A57: 1095 | B57: DREMKIT | C57: Demel Tool + Bit Kit | D57: 0 | G57: 1 | H57: 1 | M57: 1 | R57: 1 | S57: =INDEX('QB Report'!D:D,MATCH(Table_Query_from_AdvancePro_DB4[[#This Row],[Product SKU]]&"*",'QB Report'!C:C,0)) ->  | U57: =INDEX('QB Report'!F:F,MATCH(Table_Query_from_AdvancePro_DB4[[#This Row],[Product SKU]]&"*",'QB Report'!C:C,0)) ->  | W57: =INDEX('QB Report'!H:H,MATCH(Table_Query_from_AdvancePro_DB4[[#This Row],[Product SKU]]&"*",'QB Report'!C:C,0)) ->  | X57: =Table_Query_from_AdvancePro_DB4[[#This Row],[Actual Asset Value]]-Table_Query_from_AdvancePro_DB4[[#This Row],[Exp. Asset Value]] -> 
A58: 1259 | B58: DS_ABC | C58: Directional Sensor ABC | D58: 999 | E58: 23 | G58: 1 | H58: 1 | M58: 1 | R58: 1000 | S58: =INDEX('QB Report'!D:D,MATCH(Table_Query_from_AdvancePro_DB4[[#This Row],[Product SKU]]&"*",'QB Report'!C:C,0)) ->  | T58: 23 | U58: =INDEX('QB Report'!F:F,MATCH(Table_Query_from_AdvancePro_DB4[[#This Row],[Product SKU]]&"*",'QB Report'!C:C,0)) ->  | V58: 23000 | W58: =INDEX('QB Report'!H:H,MATCH(Table_Query_from_AdvancePro_DB4[[#This Row],[Product SKU]]&"*",'QB Report'!C:C,0)) ->  | X58: =Table_Query_from_AdvancePro_DB4[[#This Row],[Actual Asset Value]]-Table_Query_from_AdvancePro_DB4[[#This Row],[Exp. Asset Value]] -> 
A59: 1072 | B59: DW0002 | C59: DEWALT 18-Volt 1/2-in Cordless Battery Included Drill with Soft Case | D59: 105 | E59: 1 | F59: 1 | G59: 1 | H59: 1 | I59: 6 | M59: 1 | R59: 100 | S59: =INDEX('QB Report'!D:D,MATCH(Table_Query_from_AdvancePro_DB4[[#This Row],[Product SKU]]&"*",'QB Report'!C:C,0)) -> 200 | T59: 1 | U59: =INDEX('QB Report'!F:F,MATCH(Table_Query_from_AdvancePro_DB4[[#This Row],[Product SKU]]&"*",'QB Report'!C:C,0)) -> 1 | V59: 100 | W59: =INDEX('QB Report'!H:H,MATCH(Table_Query_from_AdvancePro_DB4[[#This Row],[Product SKU]]&"*",'QB Report'!C:C,0)) -> 200 | X59: =Table_Query_from_AdvancePro_DB4[[#This Row],[Actual Asset Value]]-Table_Query_from_AdvancePro_DB4[[#This Row],[Exp. Asset Value]] -> 100
A60: 1291 | B60: EXAMPLE | C60: EXAMPLE | D60: 0 | E60: 2.5 | G60: 1 | H60: 1 | R60: 0 | S60: =INDEX('QB Report'!D:D,MATCH(Table_Query_from_AdvancePro_DB4[[#This Row],[Product SKU]]&"*",'QB Report'!C:C,0)) ->  | T60: 2.5 | U60: =INDEX('QB Report'!F:F,MATCH(Table_Query_from_AdvancePro_DB4[[#This Row],[Product SKU]]&"*",'QB Report'!C:C,0)) ->  | V60: 0 | W60: =INDEX('QB Report'!H:H,MATCH(Table_Query_from_AdvancePro_DB4[[#This Row],[Product SKU]]&"*",'QB Report'!C:C,0)) ->  | X60: =Table_Query_from_AdvancePro_DB4[[#This Row],[Actual Asset Value]]-Table_Query_from_AdvancePro_DB4[[#This Row],[Exp. Asset Value]] -> 
A61: 1203 | B61: FP-TAB | C61: FP-TAB | D61: 99 | E61: 0.4329 | G61: 1 | H61: 1 | R61: 99 | S61: =INDEX('QB Report'!D:D,MATCH(Table_Query_from_AdvancePro_DB4[[#This Row],[Product SKU]]&"*",'QB Report'!C:C,0)) -> 99 | T61: 0.4329 | U61: =INDEX('QB Report'!F:F,MATCH(Table_Query_from_AdvancePro_DB4[[#This Row],[Product SKU]]&"*",'QB Report'!C:C,0)) -> 0.43 | V61: 42.8571 | W61: =INDEX('QB Report'!H:H,MATCH(Table_Query_from_AdvancePro_DB4[[#This Row],[Product SKU]]&"*",'QB Report'!C:C,0)) -> 42.86 | X61: =Table_Query_from_AdvancePro_DB4[[#This Row],[Actual Asset Value]]-Table_Query_from_AdvancePro_DB4[[#This Row],[Exp. Asset Value]] -> 0.0029
A62: 1198 | B62: FTB-NECHM | C62: FTB-NECHM | D62: 100 | E62: 0 | G62: 1 | H62: 1 | R62: 100 | S62: =INDEX('QB Report'!D:D,MATCH(Table_Query_from_AdvancePro_DB4[[#This Row],[Product SKU]]&"*",'QB Report'!C:C,0)) -> 100 | T62: 0 | U62: =INDEX('QB Report'!F:F,MATCH(Table_Query_from_AdvancePro_DB4[[#This Row],[Product SKU]]&"*",'QB Report'!C:C,0)) -> 0 | V62: 0 | W62: =INDEX('QB Report'!H:H,MATCH(Table_Query_from_AdvancePro_DB4[[#This Row],[Product SKU]]&"*",'QB Report'!C:C,0)) -> 0 | X62: =Table_Query_from_AdvancePro_DB4[[#This Row],[Actual Asset Value]]-Table_Query_from_AdvancePro_DB4[[#This Row],[Exp. Asset Value]] -> 0
A63: 1286 | B63: Full Install | C63: Full Install | D63: 0 | G63: 1 | H63: 1 | R63: 0 | S63: =INDEX('QB Report'!D:D,MATCH(Table_Query_from_AdvancePro_DB4[[#This Row],[Product SKU]]&"*",'QB Report'!C:C,0)) ->  | U63: =INDEX('QB Report'!F:F,MATCH(Table_Query_from_AdvancePro_DB4[[#This Row],[Product SKU]]&"*",'QB Report'!C:C,0)) ->  | W63: =INDEX('QB Report'!H:H,MATCH(Table_Query_from_AdvancePro_DB4[[#This Row],[Product SKU]]&"*",'QB Report'!C:C,0)) ->  | X63: =Table_Query_from_AdvancePro_DB4[[#This Row],[Actual Asset Value]]-Table_Query_from_AdvancePro_DB4[[#This Row],[Exp. Asset Value]] -> 
A64: 1222 | B64: H10 | C64: Hi Volatility Coal | D64: 29650 | E64: 1.7 | G64: 1 | H64: 1 | R64: 29650 | S64: =INDEX('QB Report'!D:D,MATCH(Table_Query_from_AdvancePro_DB4[[#This Row],[Product SKU]]&"*",'QB Report'!C:C,0)) -> 29720 | T64: 1.7 | U64: =INDEX('QB Report'!F:F,MATCH(Table_Query_from_AdvancePro_DB4[[#This Row],[Product SKU]]&"*",'QB Report'!C:C,0)) -> 1.7 | V64: 50405 | W64: =INDEX('QB Report'!H:H,MATCH(Table_Query_from_AdvancePro_DB4[[#This Row],[Product SKU]]&"*",'QB Report'!C:C,0)) -> 50524 | X64: =Table_Query_from_AdvancePro_DB4[[#This Row],[Actual Asset Value]]-Table_Query_from_AdvancePro_DB4[[#This Row],[Exp. Asset Value]] -> 119
A65: 1078 | B65: HDGT01 | C65: Häagen-Dazs Green Tea Ice Cream | D65: 151 | E65: 2 | G65: 1 | H65: 1 | R65: 151 | S65: =INDEX('QB Report'!D:D,MATCH(Table_Query_from_AdvancePro_DB4[[#This Row],[Product SKU]]&"*",'QB Report'!C:C,0)) -> 152 | T65: 2 | U65: =INDEX('QB Report'!F:F,MATCH(Table_Query_from_AdvancePro_DB4[[#This Row],[Product SKU]]&"*",'QB Report'!C:C,0)) -> 2 | V65: 302 | W65: =INDEX('QB Report'!H:H,MATCH(Table_Query_from_AdvancePro_DB4[[#This Row],[Product SKU]]&"*",'QB Report'!C:C,0)) -> 304 | X65: =Table_Query_from_AdvancePro_DB4[[#This Row],[Actual Asset Value]]-Table_Query_from_AdvancePro_DB4[[#This Row],[Exp. Asset Value]] -> 2
A66: 1245 | B66: IGL-03 | C66: Indus Gold - Limestone - 3/4 in - 100 x 54 inches | D66: 51 | E66: 0 | F66: 0 | G66: 1 | H66: 1 | R66: 51 | S66: =INDEX('QB Report'!D:D,MATCH(Table_Query_from_AdvancePro_DB4[[#This Row],[Product SKU]]&"*",'QB Report'!C:C,0)) -> 51 | T66: 0 | U66: =INDEX('QB Report'!F:F,MATCH(Table_Query_from_AdvancePro_DB4[[#This Row],[Product SKU]]&"*",'QB Report'!C:C,0)) -> 0 | V66: 0 | W66: =INDEX('QB Report'!H:H,MATCH(Table_Query_from_AdvancePro_DB4[[#This Row],[Product SKU]]&"*",'QB Report'!C:C,0)) -> 0 | X66: =Table_Query_from_AdvancePro_DB4[[#This Row],[Actual Asset Value]]-Table_Query_from_AdvancePro_DB4[[#This Row],[Exp. Asset Value]] -> 0
A67: 1255 | B67: ING-BT | C67: Beet Juice (LB) | D67: 73.124 | E67: 2.916 | G67: 1 | H67: 1 | I67: 10 | M67: 10 | R67: 73.124 | S67: =INDEX('QB Report'!D:D,MATCH(Table_Query_from_AdvancePro_DB4[[#This Row],[Product SKU]]&"*",'QB Report'!C:C,0)) ->  | T67: 2.916 | U67: =INDEX('QB Report'!F:F,MATCH(Table_Query_from_AdvancePro_DB4[[#This Row],[Product SKU]]&"*",'QB Report'!C:C,0)) ->  | V67: 213.229584 | W67: =INDEX('QB Report'!H:H,MATCH(Table_Query_from_AdvancePro_DB4[[#This Row],[Product SKU]]&"*",'QB Report'!C:C,0)) ->  | X67: =Table_Query_from_AdvancePro_DB4[[#This Row],[Actual Asset Value]]-Table_Query_from_AdvancePro_DB4[[#This Row],[Exp. Asset Value]] -> 
A68: 1079 | B68: INT001 | C68: Intel® Pentium® G3240 Dual-Core 3.1GHz CPU/Gigabyte GA-B85M-HD3 mATX MB/4GB DDR3 1600 Adata XPG V1 Memory Bundle | D68: 995 | E68: 100 | F68: 100 | G68: 1 | H68: 1 | I68: 1 | R68: 994 | S68: =INDEX('QB Report'!D:D,MATCH(Table_Query_from_AdvancePro_DB4[[#This Row],[Product SKU]]&"*",'QB Report'!C:C,0)) -> 997 | T68: 100 | U68: =INDEX('QB Report'!F:F,MATCH(Table_Query_from_AdvancePro_DB4[[#This Row],[Product SKU]]&"*",'QB Report'!C:C,0)) -> 100 | V68: 99400 | W68: =INDEX('QB Report'!H:H,MATCH(Table_Query_from_AdvancePro_DB4[[#This Row],[Product SKU]]&"*",'QB Report'!C:C,0)) -> 99700 | X68: =Table_Query_from_AdvancePro_DB4[[#This Row],[Actual Asset Value]]-Table_Query_from_AdvancePro_DB4[[#This Row],[Exp. Asset Value]] -> 300
A69: 1230 | B69: Internal ABC | C69: Part; ABC | D69: 0 | E69: 0 | F69: 10 | G69: 1 | H69: 1 | R69: 0 | S69: =INDEX('QB Report'!D:D,MATCH(Table_Query_from_AdvancePro_DB4[[#This Row],[Product SKU]]&"*",'QB Report'!C:C,0)) -> 0 | T69: 10 | U69: =INDEX('QB Report'!F:F,MATCH(Table_Query_from_AdvancePro_DB4[[#This Row],[Product SKU]]&"*",'QB Report'!C:C,0)) -> 0 | V69: 0 | W69: =INDEX('QB Report'!H:H,MATCH(Table_Query_from_AdvancePro_DB4[[#This Row],[Product SKU]]&"*",'QB Report'!C:C,0)) -> 0 | X69: =Table_Query_from_AdvancePro_DB4[[#This Row],[Actual Asset Value]]-Table_Query_from_AdvancePro_DB4[[#This Row],[Exp. Asset Value]] -> 0
A70: 1231 | B70: iphone 6s | C70: Iphone 6s | D70: 10 | E70: 50 | G70: 1 | H70: 1 | I70: 5 | R70: 5 | S70: =INDEX('QB Report'!D:D,MATCH(Table_Query_from_AdvancePro_DB4[[#This Row],[Product SKU]]&"*",'QB Report'!C:C,0)) -> 5 | T70: 50 | U70: =INDEX('QB Report'!F:F,MATCH(Table_Query_from_AdvancePro_DB4[[#This Row],[Product SKU]]&"*",'QB Report'!C:C,0)) -> 50 | V70: 250 | W70: =INDEX('QB Report'!H:H,MATCH(Table_Query_from_AdvancePro_DB4[[#This Row],[Product SKU]]&"*",'QB Report'!C:C,0)) -> 250 | X70: =Table_Query_from_AdvancePro_DB4[[#This Row],[Actual Asset Value]]-Table_Query_from_AdvancePro_DB4[[#This Row],[Exp. Asset Value]] -> 0
A71: 1282 | B71: kit1 | C71: KIT1 | D71: 0 | E71: 0 | G71: 1 | H71: 1 | R71: 0 | S71: =INDEX('QB Report'!D:D,MATCH(Table_Query_from_AdvancePro_DB4[[#This Row],[Product SKU]]&"*",'QB Report'!C:C,0)) ->  | T71: 0 | U71: =INDEX('QB Report'!F:F,MATCH(Table_Query_from_AdvancePro_DB4[[#This Row],[Product SKU]]&"*",'QB Report'!C:C,0)) ->  | V71: 0 | W71: =INDEX('QB Report'!H:H,MATCH(Table_Query_from_AdvancePro_DB4[[#This Row],[Product SKU]]&"*",'QB Report'!C:C,0)) ->  | X71: =Table_Query_from_AdvancePro_DB4[[#This Row],[Actual Asset Value]]-Table_Query_from_AdvancePro_DB4[[#This Row],[Exp. Asset Value]] -> 
A72: 1080 | B72: LACREMA | C72: Lavazza Crema Aroma Coffee Beans | D72: 151 | E72: 12.5 | F72: 12.5 | G72: 1 | H72: 1 | R72: 151 | S72: =INDEX('QB Report'!D:D,MATCH(Table_Query_from_AdvancePro_DB4[[#This Row],[Product SKU]]&"*",'QB Report'!C:C,0)) -> 150 | T72: 12.5 | U72: =INDEX('QB Report'!F:F,MATCH(Table_Query_from_AdvancePro_DB4[[#This Row],[Product SKU]]&"*",'QB Report'!C:C,0)) -> 12.5 | V72: 1887.5 | W72: =INDEX('QB Report'!H:H,MATCH(Table_Query_from_AdvancePro_DB4[[#This Row],[Product SKU]]&"*",'QB Report'!C:C,0)) -> 1875 | X72: =Table_Query_from_AdvancePro_DB4[[#This Row],[Actual Asset Value]]-Table_Query_from_AdvancePro_DB4[[#This Row],[Exp. Asset Value]] -> -12.5
A73: 1138 | B73: MAG CYL | C73: CYLINDER MAGNETS | D73: 5306 | E73: 1 | F73: 1 | G73: 1 | H73: 1 | I73: 336 | R73: 4970 | S73: =INDEX('QB Report'!D:D,MATCH(Table_Query_from_AdvancePro_DB4[[#This Row],[Product SKU]]&"*",'QB Report'!C:C,0)) -> 5000 | T73: 1 | U73: =INDEX('QB Report'!F:F,MATCH(Table_Query_from_AdvancePro_DB4[[#This Row],[Product SKU]]&"*",'QB Report'!C:C,0)) -> 1 | V73: 4970 | W73: =INDEX('QB Report'!H:H,MATCH(Table_Query_from_AdvancePro_DB4[[#This Row],[Product SKU]]&"*",'QB Report'!C:C,0)) -> 5000 | X73: =Table_Query_from_AdvancePro_DB4[[#This Row],[Actual Asset Value]]-Table_Query_from_AdvancePro_DB4[[#This Row],[Exp. Asset Value]] -> 30
A74: 1162 | B74: MAG WIRE | C74: MAG WIRE | D74: 1000 | E74: 13 | G74: 1 | H74: 1 | I74: 1000 | R74: 0 | S74: =INDEX('QB Report'!D:D,MATCH(Table_Query_from_AdvancePro_DB4[[#This Row],[Product SKU]]&"*",'QB Report'!C:C,0)) -> 0 | T74: 13 | U74: =INDEX('QB Report'!F:F,MATCH(Table_Query_from_AdvancePro_DB4[[#This Row],[Product SKU]]&"*",'QB Report'!C:C,0)) -> 0 | V74: 0 | W74: =INDEX('QB Report'!H:H,MATCH(Table_Query_from_AdvancePro_DB4[[#This Row],[Product SKU]]&"*",'QB Report'!C:C,0)) -> 0 | X74: =Table_Query_from_AdvancePro_DB4[[#This Row],[Actual Asset Value]]-Table_Query_from_AdvancePro_DB4[[#This Row],[Exp. Asset Value]] -> 0
A75: 1097 | B75: MRSFIELD | C75: Mrs. Fields' Chocolate Chip Cookies | D75: 120 | E75: 5 | F75: 4.444444444 | G75: 1 | H75: 1 | R75: 120 | S75: =INDEX('QB Report'!D:D,MATCH(Table_Query_from_AdvancePro_DB4[[#This Row],[Product SKU]]&"*",'QB Report'!C:C,0)) -> 120 | T75: 4.444444444 | U75: =INDEX('QB Report'!F:F,MATCH(Table_Query_from_AdvancePro_DB4[[#This Row],[Product SKU]]&"*",'QB Report'!C:C,0)) -> 4.79 | V75: 533.3333333 | W75: =INDEX('QB Report'!H:H,MATCH(Table_Query_from_AdvancePro_DB4[[#This Row],[Product SKU]]&"*",'QB Report'!C:C,0)) -> 575 | X75: =Table_Query_from_AdvancePro_DB4[[#This Row],[Actual Asset Value]]-Table_Query_from_AdvancePro_DB4[[#This Row],[Exp. Asset Value]] -> 41.66666667
A76: 1240 | B76: MWE0-22 | C76: Magnific White - Granite - 3/4 in - 124 x 73 inches | D76: 1 | E76: 0 | G76: 1 | H76: 1 | R76: 1 | S76: =INDEX('QB Report'!D:D,MATCH(Table_Query_from_AdvancePro_DB4[[#This Row],[Product SKU]]&"*",'QB Report'!C:C,0)) -> 1 | T76: 0 | U76: =INDEX('QB Report'!F:F,MATCH(Table_Query_from_AdvancePro_DB4[[#This Row],[Product SKU]]&"*",'QB Report'!C:C,0)) -> 0 | V76: 0 | W76: =INDEX('QB Report'!H:H,MATCH(Table_Query_from_AdvancePro_DB4[[#This Row],[Product SKU]]&"*",'QB Report'!C:C,0)) -> 0 | X76: =Table_Query_from_AdvancePro_DB4[[#This Row],[Actual Asset Value]]-Table_Query_from_AdvancePro_DB4[[#This Row],[Exp. Asset Value]] -> 0
A77: 1083 | B77: N17-55mm | C77: Nikon 17-55mm f/2.8G ED-IF AF-S DX Lens | D77: 109 | E77: 1.08406 | F77: 10 | G77: 1 | H77: 1 | M77: 1 | R77: 110 | S77: =INDEX('QB Report'!D:D,MATCH(Table_Query_from_AdvancePro_DB4[[#This Row],[Product SKU]]&"*",'QB Report'!C:C,0)) -> 100 | T77: 10 | U77: =INDEX('QB Report'!F:F,MATCH(Table_Query_from_AdvancePro_DB4[[#This Row],[Product SKU]]&"*",'QB Report'!C:C,0)) -> 10 | V77: 1100 | W77: =INDEX('QB Report'!H:H,MATCH(Table_Query_from_AdvancePro_DB4[[#This Row],[Product SKU]]&"*",'QB Report'!C:C,0)) -> 1000 | X77: =Table_Query_from_AdvancePro_DB4[[#This Row],[Actual Asset Value]]-Table_Query_from_AdvancePro_DB4[[#This Row],[Exp. Asset Value]] -> -100
A78: 1084 | B78: ND3200 | C78: Nikon D3200 | D78: 103 | E78: 1100.2588 | F78: 1100 | G78: 1 | H78: 1 | M78: 3 | R78: 106 | S78: =INDEX('QB Report'!D:D,MATCH(Table_Query_from_AdvancePro_DB4[[#This Row],[Product SKU]]&"*",'QB Report'!C:C,0)) -> 105 | T78: 1100 | U78: =INDEX('QB Report'!F:F,MATCH(Table_Query_from_AdvancePro_DB4[[#This Row],[Product SKU]]&"*",'QB Report'!C:C,0)) -> 1100.95 | V78: 116600 | W78: =INDEX('QB Report'!H:H,MATCH(Table_Query_from_AdvancePro_DB4[[#This Row],[Product SKU]]&"*",'QB Report'!C:C,0)) -> 115600 | X78: =Table_Query_from_AdvancePro_DB4[[#This Row],[Actual Asset Value]]-Table_Query_from_AdvancePro_DB4[[#This Row],[Exp. Asset Value]] -> -1000
A79: 1085 | B79: ND750 | C79: Nikon D750 FX-format Digital SLR | D79: 109 | E79: 10.84845 | F79: 100 | G79: 1 | H79: 1 | M79: 1 | R79: 110 | S79: =INDEX('QB Report'!D:D,MATCH(Table_Query_from_AdvancePro_DB4[[#This Row],[Product SKU]]&"*",'QB Report'!C:C,0)) -> 100 | T79: 100 | U79: =INDEX('QB Report'!F:F,MATCH(Table_Query_from_AdvancePro_DB4[[#This Row],[Product SKU]]&"*",'QB Report'!C:C,0)) -> 100 | V79: 11000 | W79: =INDEX('QB Report'!H:H,MATCH(Table_Query_from_AdvancePro_DB4[[#This Row],[Product SKU]]&"*",'QB Report'!C:C,0)) -> 10000 | X79: =Table_Query_from_AdvancePro_DB4[[#This Row],[Actual Asset Value]]-Table_Query_from_AdvancePro_DB4[[#This Row],[Exp. Asset Value]] -> -1000
A80: 1077 | B80: NVG4CE | C80: Gigabyte GeForce GTX 970 G1 | D80: 870 | E80: 110 | F80: 110 | G80: 1 | H80: 1 | I80: 1 | R80: 869 | S80: =INDEX('QB Report'!D:D,MATCH(Table_Query_from_AdvancePro_DB4[[#This Row],[Product SKU]]&"*",'QB Report'!C:C,0)) -> 879 | T80: 110 | U80: =INDEX('QB Report'!F:F,MATCH(Table_Query_from_AdvancePro_DB4[[#This Row],[Product SKU]]&"*",'QB Report'!C:C,0)) -> 2 | V80: 95590 | W80: =INDEX('QB Report'!H:H,MATCH(Table_Query_from_AdvancePro_DB4[[#This Row],[Product SKU]]&"*",'QB Report'!C:C,0)) -> 1758 | X80: =Table_Query_from_AdvancePro_DB4[[#This Row],[Actual Asset Value]]-Table_Query_from_AdvancePro_DB4[[#This Row],[Exp. Asset Value]] -> -93832
A81: 1239 | B81: PanelABC | C81: Solar Panel ABC | D81: 453 | E81: 100 | G81: 1 | H81: 1 | I81: 1000 | R81: -547 | S81: =INDEX('QB Report'!D:D,MATCH(Table_Query_from_AdvancePro_DB4[[#This Row],[Product SKU]]&"*",'QB Report'!C:C,0)) -> -547 | T81: 100 | U81: =INDEX('QB Report'!F:F,MATCH(Table_Query_from_AdvancePro_DB4[[#This Row],[Product SKU]]&"*",'QB Report'!C:C,0)) -> 100 | V81: -54700 | W81: =INDEX('QB Report'!H:H,MATCH(Table_Query_from_AdvancePro_DB4[[#This Row],[Product SKU]]&"*",'QB Report'!C:C,0)) -> -54700 | X81: =Table_Query_from_AdvancePro_DB4[[#This Row],[Actual Asset Value]]-Table_Query_from_AdvancePro_DB4[[#This Row],[Exp. Asset Value]] -> 0
A82: 1087 | B82: PHSAECO | C82: Saeco Poemia Espresso Machine | D82: 96 | E82: 110 | G82: 1 | H82: 1 | M82: 1 | R82: 97 | S82: =INDEX('QB Report'!D:D,MATCH(Table_Query_from_AdvancePro_DB4[[#This Row],[Product SKU]]&"*",'QB Report'!C:C,0)) -> 100 | T82: 110 | U82: =INDEX('QB Report'!F:F,MATCH(Table_Query_from_AdvancePro_DB4[[#This Row],[Product SKU]]&"*",'QB Report'!C:C,0)) -> 110 | V82: 10670 | W82: =INDEX('QB Report'!H:H,MATCH(Table_Query_from_AdvancePro_DB4[[#This Row],[Product SKU]]&"*",'QB Report'!C:C,0)) -> 11000 | X82: =Table_Query_from_AdvancePro_DB4[[#This Row],[Actual Asset Value]]-Table_Query_from_AdvancePro_DB4[[#This Row],[Exp. Asset Value]] -> 330
A83: 1187 | B83: PLATING FOR 632S SCREW-CHROME | C83: PLATING FOR 632S SCREW-CHROME | D83: 100 | E83: 1 | G83: 1 | H83: 1 | R83: 100 | S83: =INDEX('QB Report'!D:D,MATCH(Table_Query_from_AdvancePro_DB4[[#This Row],[Product SKU]]&"*",'QB Report'!C:C,0)) -> 100 | T83: 1 | U83: =INDEX('QB Report'!F:F,MATCH(Table_Query_from_AdvancePro_DB4[[#This Row],[Product SKU]]&"*",'QB Report'!C:C,0)) -> 1 | V83: 100 | W83: =INDEX('QB Report'!H:H,MATCH(Table_Query_from_AdvancePro_DB4[[#This Row],[Product SKU]]&"*",'QB Report'!C:C,0)) -> 100 | X83: =Table_Query_from_AdvancePro_DB4[[#This Row],[Actual Asset Value]]-Table_Query_from_AdvancePro_DB4[[#This Row],[Exp. Asset Value]] -> 0
A84: 1260 | B84: PressureSensor | C84: Pressure Sensor | D84: 1000 | E84: 86 | G84: 1 | H84: 1 | R84: 1000 | S84: =INDEX('QB Report'!D:D,MATCH(Table_Query_from_AdvancePro_DB4[[#This Row],[Product SKU]]&"*",'QB Report'!C:C,0)) ->  | T84: 86 | U84: =INDEX('QB Report'!F:F,MATCH(Table_Query_from_AdvancePro_DB4[[#This Row],[Product SKU]]&"*",'QB Report'!C:C,0)) ->  | V84: 86000 | W84: =INDEX('QB Report'!H:H,MATCH(Table_Query_from_AdvancePro_DB4[[#This Row],[Product SKU]]&"*",'QB Report'!C:C,0)) ->  | X84: =Table_Query_from_AdvancePro_DB4[[#This Row],[Actual Asset Value]]-Table_Query_from_AdvancePro_DB4[[#This Row],[Exp. Asset Value]] -> 
A85: 1092 | B85: PSUP | C85: Ultra LSP Series V2 650-Watt Power Supply - ATX, 6x SATA, 2x PCI-E, 20/24-PIN, Thermal Controlled,135mm Fan, Single +12V Rail, Short Circuit, Over-Voltage and Thermal Protection | D85: 41 | E85: 25 | G85: 1 | H85: 1 | I85: 1 | M85: 1 | R85: 41 | S85: =INDEX('QB Report'!D:D,MATCH(Table_Query_from_AdvancePro_DB4[[#This Row],[Product SKU]]&"*",'QB Report'!C:C,0)) -> 87 | T85: 25 | U85: =INDEX('QB Report'!F:F,MATCH(Table_Query_from_AdvancePro_DB4[[#This Row],[Product SKU]]&"*",'QB Report'!C:C,0)) -> 25 | V85: 1025 | W85: =INDEX('QB Report'!H:H,MATCH(Table_Query_from_AdvancePro_DB4[[#This Row],[Product SKU]]&"*",'QB Report'!C:C,0)) -> 2175 | X85: =Table_Query_from_AdvancePro_DB4[[#This Row],[Actual Asset Value]]-Table_Query_from_AdvancePro_DB4[[#This Row],[Exp. Asset Value]] -> 1150
A86: 1099 | B86: RENT | C86: RENT | D86: 100 | E86: 0 | G86: 1 | H86: 1 | R86: 100 | S86: =INDEX('QB Report'!D:D,MATCH(Table_Query_from_AdvancePro_DB4[[#This Row],[Product SKU]]&"*",'QB Report'!C:C,0)) -> 100 | T86: 0 | U86: =INDEX('QB Report'!F:F,MATCH(Table_Query_from_AdvancePro_DB4[[#This Row],[Product SKU]]&"*",'QB Report'!C:C,0)) -> 0 | V86: 0 | W86: =INDEX('QB Report'!H:H,MATCH(Table_Query_from_AdvancePro_DB4[[#This Row],[Product SKU]]&"*",'QB Report'!C:C,0)) -> 0 | X86: =Table_Query_from_AdvancePro_DB4[[#This Row],[Actual Asset Value]]-Table_Query_from_AdvancePro_DB4[[#This Row],[Exp. Asset Value]] -> 0
A87: 1266 | B87: ROSE-098 | C87: ROSE | D87: 0 | E87: 0 | G87: 1 | H87: 1 | R87: 0 | S87: =INDEX('QB Report'!D:D,MATCH(Table_Query_from_AdvancePro_DB4[[#This Row],[Product SKU]]&"*",'QB Report'!C:C,0)) ->  | T87: 0 | U87: =INDEX('QB Report'!F:F,MATCH(Table_Query_from_AdvancePro_DB4[[#This Row],[Product SKU]]&"*",'QB Report'!C:C,0)) ->  | V87: 0 | W87: =INDEX('QB Report'!H:H,MATCH(Table_Query_from_AdvancePro_DB4[[#This Row],[Product SKU]]&"*",'QB Report'!C:C,0)) ->  | X87: =Table_Query_from_AdvancePro_DB4[[#This Row],[Actual Asset Value]]-Table_Query_from_AdvancePro_DB4[[#This Row],[Exp. Asset Value]] -> 
A88: 1263 | B88: RW-09 | C88: WINE (RED) | D88: 1000 | E88: 0 | G88: 1 | H88: 1 | R88: 1000 | S88: =INDEX('QB Report'!D:D,MATCH(Table_Query_from_AdvancePro_DB4[[#This Row],[Product SKU]]&"*",'QB Report'!C:C,0)) ->  | T88: 0 | U88: =INDEX('QB Report'!F:F,MATCH(Table_Query_from_AdvancePro_DB4[[#This Row],[Product SKU]]&"*",'QB Report'!C:C,0)) ->  | V88: 0 | W88: =INDEX('QB Report'!H:H,MATCH(Table_Query_from_AdvancePro_DB4[[#This Row],[Product SKU]]&"*",'QB Report'!C:C,0)) ->  | X88: =Table_Query_from_AdvancePro_DB4[[#This Row],[Actual Asset Value]]-Table_Query_from_AdvancePro_DB4[[#This Row],[Exp. Asset Value]] -> 
A89: 1090 | B89: SB-COFFEE-12OZ | C89: Starbucks House Blend Coffee 12oz Bag | D89: 150 | E89: 7.5 | G89: 1 | H89: 1 | R89: 150 | S89: =INDEX('QB Report'!D:D,MATCH(Table_Query_from_AdvancePro_DB4[[#This Row],[Product SKU]]&"*",'QB Report'!C:C,0)) -> 150 | T89: 7.5 | U89: =INDEX('QB Report'!F:F,MATCH(Table_Query_from_AdvancePro_DB4[[#This Row],[Product SKU]]&"*",'QB Report'!C:C,0)) -> 7.5 | V89: 1125 | W89: =INDEX('QB Report'!H:H,MATCH(Table_Query_from_AdvancePro_DB4[[#This Row],[Product SKU]]&"*",'QB Report'!C:C,0)) -> 1125 | X89: =Table_Query_from_AdvancePro_DB4[[#This Row],[Actual Asset Value]]-Table_Query_from_AdvancePro_DB4[[#This Row],[Exp. Asset Value]] -> 0
A90: 1193 | B90: SCRW 632 | C90: SCRW 632 | D90: 100 | E90: 0.01 | G90: 1 | H90: 1 | R90: 100 | S90: =INDEX('QB Report'!D:D,MATCH(Table_Query_from_AdvancePro_DB4[[#This Row],[Product SKU]]&"*",'QB Report'!C:C,0)) -> 100 | T90: 0.01 | U90: =INDEX('QB Report'!F:F,MATCH(Table_Query_from_AdvancePro_DB4[[#This Row],[Product SKU]]&"*",'QB Report'!C:C,0)) -> 0.01 | V90: 1 | W90: =INDEX('QB Report'!H:H,MATCH(Table_Query_from_AdvancePro_DB4[[#This Row],[Product SKU]]&"*",'QB Report'!C:C,0)) -> 1 | X90: =Table_Query_from_AdvancePro_DB4[[#This Row],[Actual Asset Value]]-Table_Query_from_AdvancePro_DB4[[#This Row],[Exp. Asset Value]] -> 0
A91: 1194 | B91: SCRW-632-CHM | C91: SCRW-632-CHM | D91: 100 | E91: 1.01 | G91: 1 | H91: 1 | R91: 100 | S91: =INDEX('QB Report'!D:D,MATCH(Table_Query_from_AdvancePro_DB4[[#This Row],[Product SKU]]&"*",'QB Report'!C:C,0)) -> 100 | T91: 1.01 | U91: =INDEX('QB Report'!F:F,MATCH(Table_Query_from_AdvancePro_DB4[[#This Row],[Product SKU]]&"*",'QB Report'!C:C,0)) -> 1.01 | V91: 101 | W91: =INDEX('QB Report'!H:H,MATCH(Table_Query_from_AdvancePro_DB4[[#This Row],[Product SKU]]&"*",'QB Report'!C:C,0)) -> 101 | X91: =Table_Query_from_AdvancePro_DB4[[#This Row],[Actual Asset Value]]-Table_Query_from_AdvancePro_DB4[[#This Row],[Exp. Asset Value]] -> 0
A92: 1088 | B92: SDUSB-8GB | C92: Sandisk USB Drive 8GB | D92: 83 | E92: 7 | G92: 1 | H92: 1 | I92: 1 | R92: 82 | S92: =INDEX('QB Report'!D:D,MATCH(Table_Query_from_AdvancePro_DB4[[#This Row],[Product SKU]]&"*",'QB Report'!C:C,0)) -> 90 | T92: 7 | U92: =INDEX('QB Report'!F:F,MATCH(Table_Query_from_AdvancePro_DB4[[#This Row],[Product SKU]]&"*",'QB Report'!C:C,0)) -> 7 | V92: 574 | W92: =INDEX('QB Report'!H:H,MATCH(Table_Query_from_AdvancePro_DB4[[#This Row],[Product SKU]]&"*",'QB Report'!C:C,0)) -> 630 | X92: =Table_Query_from_AdvancePro_DB4[[#This Row],[Actual Asset Value]]-Table_Query_from_AdvancePro_DB4[[#This Row],[Exp. Asset Value]] -> 56
A93: 1235 | B93: SKU123@*@!@ | C93: Test Product 2 | D93: 0 | E93: 0 | G93: 1 | H93: 1 | R93: 0 | S93: =INDEX('QB Report'!D:D,MATCH(Table_Query_from_AdvancePro_DB4[[#This Row],[Product SKU]]&"*",'QB Report'!C:C,0)) -> 0 | T93: 0 | U93: =INDEX('QB Report'!F:F,MATCH(Table_Query_from_AdvancePro_DB4[[#This Row],[Product SKU]]&"*",'QB Report'!C:C,0)) -> 0 | V93: 0 | W93: =INDEX('QB Report'!H:H,MATCH(Table_Query_from_AdvancePro_DB4[[#This Row],[Product SKU]]&"*",'QB Report'!C:C,0)) -> 0 | X93: =Table_Query_from_AdvancePro_DB4[[#This Row],[Actual Asset Value]]-Table_Query_from_AdvancePro_DB4[[#This Row],[Exp. Asset Value]] -> 0
A94: 1257 | B94: SWIM-1PC | C94: SWIM-1PC | D94: 720 | E94: 5 | F94: 5 | G94: 1 | H94: 1 | M94: 10 | R94: 730 | S94: =INDEX('QB Report'!D:D,MATCH(Table_Query_from_AdvancePro_DB4[[#This Row],[Product SKU]]&"*",'QB Report'!C:C,0)) ->  | T94: 5 | U94: =INDEX('QB Report'!F:F,MATCH(Table_Query_from_AdvancePro_DB4[[#This Row],[Product SKU]]&"*",'QB Report'!C:C,0)) ->  | V94: 3650 | W94: =INDEX('QB Report'!H:H,MATCH(Table_Query_from_AdvancePro_DB4[[#This Row],[Product SKU]]&"*",'QB Report'!C:C,0)) ->  | X94: =Table_Query_from_AdvancePro_DB4[[#This Row],[Actual Asset Value]]-Table_Query_from_AdvancePro_DB4[[#This Row],[Exp. Asset Value]] -> 
A95: 1256 | B95: SWIM-2P | C95: Swimsuit - 2 Piece | D95: 10 | E95: 2 | F95: 2 | G95: 1 | H95: 1 | I95: 10 | R95: 0 | S95: =INDEX('QB Report'!D:D,MATCH(Table_Query_from_AdvancePro_DB4[[#This Row],[Product SKU]]&"*",'QB Report'!C:C,0)) ->  | T95: 2 | U95: =INDEX('QB Report'!F:F,MATCH(Table_Query_from_AdvancePro_DB4[[#This Row],[Product SKU]]&"*",'QB Report'!C:C,0)) ->  | V95: 0 | W95: =INDEX('QB Report'!H:H,MATCH(Table_Query_from_AdvancePro_DB4[[#This Row],[Product SKU]]&"*",'QB Report'!C:C,0)) ->  | X95: =Table_Query_from_AdvancePro_DB4[[#This Row],[Actual Asset Value]]-Table_Query_from_AdvancePro_DB4[[#This Row],[Exp. Asset Value]] -> 
A96: 1190 | B96: TA ANGLE BRASS | C96: TA ANGLE BRASS | D96: 100 | E96: 0 | G96: 1 | H96: 1 | R96: 100 | S96: =INDEX('QB Report'!D:D,MATCH(Table_Query_from_AdvancePro_DB4[[#This Row],[Product SKU]]&"*",'QB Report'!C:C,0)) -> 100 | T96: 0 | U96: =INDEX('QB Report'!F:F,MATCH(Table_Query_from_AdvancePro_DB4[[#This Row],[Product SKU]]&"*",'QB Report'!C:C,0)) -> 0 | V96: 0 | W96: =INDEX('QB Report'!H:H,MATCH(Table_Query_from_AdvancePro_DB4[[#This Row],[Product SKU]]&"*",'QB Report'!C:C,0)) -> 0 | X96: =Table_Query_from_AdvancePro_DB4[[#This Row],[Actual Asset Value]]-Table_Query_from_AdvancePro_DB4[[#This Row],[Exp. Asset Value]] -> 0
A97: 1157 | B97: TA BOBBIN FB | C97: TA BOBBIN FB | D97: 100 | E97: 0.4586 | F97: 0.133 | G97: 1 | H97: 1 | R97: 100 | S97: =INDEX('QB Report'!D:D,MATCH(Table_Query_from_AdvancePro_DB4[[#This Row],[Product SKU]]&"*",'QB Report'!C:C,0)) -> 100 | T97: 0.133 | U97: =INDEX('QB Report'!F:F,MATCH(Table_Query_from_AdvancePro_DB4[[#This Row],[Product SKU]]&"*",'QB Report'!C:C,0)) -> 0.46 | V97: 13.3 | W97: =INDEX('QB Report'!H:H,MATCH(Table_Query_from_AdvancePro_DB4[[#This Row],[Product SKU]]&"*",'QB Report'!C:C,0)) -> 45.86 | X97: =Table_Query_from_AdvancePro_DB4[[#This Row],[Actual Asset Value]]-Table_Query_from_AdvancePro_DB4[[#This Row],[Exp. Asset Value]] -> 32.56
A98: 1160 | B98: TA Plastic-B | C98: TA Plastic-B | D98: 100 | E98: 0.1625 | G98: 1 | H98: 1 | R98: 100 | S98: =INDEX('QB Report'!D:D,MATCH(Table_Query_from_AdvancePro_DB4[[#This Row],[Product SKU]]&"*",'QB Report'!C:C,0)) -> 100 | T98: 0.1625 | U98: =INDEX('QB Report'!F:F,MATCH(Table_Query_from_AdvancePro_DB4[[#This Row],[Product SKU]]&"*",'QB Report'!C:C,0)) -> 0.16 | V98: 16.25 | W98: =INDEX('QB Report'!H:H,MATCH(Table_Query_from_AdvancePro_DB4[[#This Row],[Product SKU]]&"*",'QB Report'!C:C,0)) -> 16.25 | X98: =Table_Query_from_AdvancePro_DB4[[#This Row],[Actual Asset Value]]-Table_Query_from_AdvancePro_DB4[[#This Row],[Exp. Asset Value]] -> 0
A99: 1161 | B99: TA TEARDROPS | C99: TA TEARDROPS | D99: 100 | E99: 0.0003 | G99: 1 | H99: 1 | R99: 100 | S99: =INDEX('QB Report'!D:D,MATCH(Table_Query_from_AdvancePro_DB4[[#This Row],[Product SKU]]&"*",'QB Report'!C:C,0)) -> 100 | T99: 0.0003 | U99: =INDEX('QB Report'!F:F,MATCH(Table_Query_from_AdvancePro_DB4[[#This Row],[Product SKU]]&"*",'QB Report'!C:C,0)) -> 0.01 | V99: 0.03 | W99: =INDEX('QB Report'!H:H,MATCH(Table_Query_from_AdvancePro_DB4[[#This Row],[Product SKU]]&"*",'QB Report'!C:C,0)) -> 0.8 | X99: =Table_Query_from_AdvancePro_DB4[[#This Row],[Actual Asset Value]]-Table_Query_from_AdvancePro_DB4[[#This Row],[Exp. Asset Value]] -> 0.77
A100: 1182 | B100: TA TEARDROPS-PRESSED | C100: TA TEARDROPS-PRESSED | D100: 94 | E100: 1.0003 | G100: 1 | H100: 1 | R100: 94 | S100: =INDEX('QB Report'!D:D,MATCH(Table_Query_from_AdvancePro_DB4[[#This Row],[Product SKU]]&"*",'QB Report'!C:C,0)) -> 94 | T100: 1.0003 | U100: =INDEX('QB Report'!F:F,MATCH(Table_Query_from_AdvancePro_DB4[[#This Row],[Product SKU]]&"*",'QB Report'!C:C,0)) -> 6.05 | V100: 94.0282 | W100: =INDEX('QB Report'!H:H,MATCH(Table_Query_from_AdvancePro_DB4[[#This Row],[Product SKU]]&"*",'QB Report'!C:C,0)) -> 568.51 | X100: =Table_Query_from_AdvancePro_DB4[[#This Row],[Actual Asset Value]]-Table_Query_from_AdvancePro_DB4[[#This Row],[Exp. Asset Value]] -> 474.4818
A101: 1212 | B101: TAB-DACHM | C101: TAB-DACHM | D101: 100 | E101: 15.2097 | F101: 15.2 | G101: 1 | H101: 1 | R101: 100 | S101: =INDEX('QB Report'!D:D,MATCH(Table_Query_from_AdvancePro_DB4[[#This Row],[Product SKU]]&"*",'QB Report'!C:C,0)) -> 0 | T101: 15.2 | U101: =INDEX('QB Report'!F:F,MATCH(Table_Query_from_AdvancePro_DB4[[#This Row],[Product SKU]]&"*",'QB Report'!C:C,0)) -> 15.21 | V101: 1520 | W101: =INDEX('QB Report'!H:H,MATCH(Table_Query_from_AdvancePro_DB4[[#This Row],[Product SKU]]&"*",'QB Report'!C:C,0)) -> 0 | X101: =Table_Query_from_AdvancePro_DB4[[#This Row],[Actual Asset Value]]-Table_Query_from_AdvancePro_DB4[[#This Row],[Exp. Asset Value]] -> -1520
A102: 1151 | B102: TAB-DAGLD | C102: TAB-DAGLD | D102: 100 | E102: 48.4966 | F102: 16.26 | G102: 1 | H102: 0 | R102: 100 | S102: =INDEX('QB Report'!D:D,MATCH(Table_Query_from_AdvancePro_DB4[[#This Row],[Product SKU]]&"*",'QB Report'!C:C,0)) -> -1 | T102: 16.26 | U102: =INDEX('QB Report'!F:F,MATCH(Table_Query_from_AdvancePro_DB4[[#This Row],[Product SKU]]&"*",'QB Report'!C:C,0)) -> 0 | V102: 1626 | W102: =INDEX('QB Report'!H:H,MATCH(Table_Query_from_AdvancePro_DB4[[#This Row],[Product SKU]]&"*",'QB Report'!C:C,0)) -> 0 | X102: =Table_Query_from_AdvancePro_DB4[[#This Row],[Actual Asset Value]]-Table_Query_from_AdvancePro_DB4[[#This Row],[Exp. Asset Value]] -> -1626
A103: 1209 | B103: TAB-THICK | C103: TAB-THICK | D103: 100 | E103: 0.1 | G103: 1 | H103: 1 | R103: 100 | S103: =INDEX('QB Report'!D:D,MATCH(Table_Query_from_AdvancePro_DB4[[#This Row],[Product SKU]]&"*",'QB Report'!C:C,0)) -> 100 | T103: 0.1 | U103: =INDEX('QB Report'!F:F,MATCH(Table_Query_from_AdvancePro_DB4[[#This Row],[Product SKU]]&"*",'QB Report'!C:C,0)) -> 0.1 | V103: 10 | W103: =INDEX('QB Report'!H:H,MATCH(Table_Query_from_AdvancePro_DB4[[#This Row],[Product SKU]]&"*",'QB Report'!C:C,0)) -> 10 | X103: =Table_Query_from_AdvancePro_DB4[[#This Row],[Actual Asset Value]]-Table_Query_from_AdvancePro_DB4[[#This Row],[Exp. Asset Value]] -> 0
A104: 1208 | B104: TAB-THIN | C104: TAB-THIN | D104: 100 | E104: 0.25 | G104: 1 | H104: 1 | R104: 100 | S104: =INDEX('QB Report'!D:D,MATCH(Table_Query_from_AdvancePro_DB4[[#This Row],[Product SKU]]&"*",'QB Report'!C:C,0)) -> 100 | T104: 0.25 | U104: =INDEX('QB Report'!F:F,MATCH(Table_Query_from_AdvancePro_DB4[[#This Row],[Product SKU]]&"*",'QB Report'!C:C,0)) -> 0.25 | V104: 25 | W104: =INDEX('QB Report'!H:H,MATCH(Table_Query_from_AdvancePro_DB4[[#This Row],[Product SKU]]&"*",'QB Report'!C:C,0)) -> 25 | X104: =Table_Query_from_AdvancePro_DB4[[#This Row],[Actual Asset Value]]-Table_Query_from_AdvancePro_DB4[[#This Row],[Exp. Asset Value]] -> 0
A105: 1205 | B105: TAB-WOOD | C105: TAB-WOOD | D105: 100 | E105: 0 | G105: 1 | H105: 1 | R105: 100 | S105: =INDEX('QB Report'!D:D,MATCH(Table_Query_from_AdvancePro_DB4[[#This Row],[Product SKU]]&"*",'QB Report'!C:C,0)) -> 100 | T105: 0 | U105: =INDEX('QB Report'!F:F,MATCH(Table_Query_from_AdvancePro_DB4[[#This Row],[Product SKU]]&"*",'QB Report'!C:C,0)) -> 0 | V105: 0 | W105: =INDEX('QB Report'!H:H,MATCH(Table_Query_from_AdvancePro_DB4[[#This Row],[Product SKU]]&"*",'QB Report'!C:C,0)) -> 0 | X105: =Table_Query_from_AdvancePro_DB4[[#This Row],[Actual Asset Value]]-Table_Query_from_AdvancePro_DB4[[#This Row],[Exp. Asset Value]] -> 0
A106: 1158 | B106: TAN-DACHM | C106: TAN-DACHM | D106: 100 | E106: 12.2902 | G106: 1 | H106: 0 | R106: 100 | S106: =INDEX('QB Report'!D:D,MATCH(Table_Query_from_AdvancePro_DB4[[#This Row],[Product SKU]]&"*",'QB Report'!C:C,0)) -> 0 | T106: 12.2902 | U106: =INDEX('QB Report'!F:F,MATCH(Table_Query_from_AdvancePro_DB4[[#This Row],[Product SKU]]&"*",'QB Report'!C:C,0)) -> 0 | V106: 1229.02 | W106: =INDEX('QB Report'!H:H,MATCH(Table_Query_from_AdvancePro_DB4[[#This Row],[Product SKU]]&"*",'QB Report'!C:C,0)) -> 0 | X106: =Table_Query_from_AdvancePro_DB4[[#This Row],[Actual Asset Value]]-Table_Query_from_AdvancePro_DB4[[#This Row],[Exp. Asset Value]] -> -1229.02
A107: 1189 | B107: TA-SCREW | C107: Height Adjustment screws | D107: 600 | E107: 0.1 | G107: 1 | H107: 1 | I107: 506 | R107: 94 | S107: =INDEX('QB Report'!D:D,MATCH(Table_Query_from_AdvancePro_DB4[[#This Row],[Product SKU]]&"*",'QB Report'!C:C,0)) -> 94 | T107: 0.1 | U107: =INDEX('QB Report'!F:F,MATCH(Table_Query_from_AdvancePro_DB4[[#This Row],[Product SKU]]&"*",'QB Report'!C:C,0)) -> 0.1 | V107: 9.4 | W107: =INDEX('QB Report'!H:H,MATCH(Table_Query_from_AdvancePro_DB4[[#This Row],[Product SKU]]&"*",'QB Report'!C:C,0)) -> 9.4 | X107: =Table_Query_from_AdvancePro_DB4[[#This Row],[Actual Asset Value]]-Table_Query_from_AdvancePro_DB4[[#This Row],[Exp. Asset Value]] -> 0
A108: 1185 | B108: TA-SPRING | C108: TA-SPRING | D108: 600 | E108: 0.1 | G108: 1 | H108: 1 | I108: 506 | R108: 94 | S108: =INDEX('QB Report'!D:D,MATCH(Table_Query_from_AdvancePro_DB4[[#This Row],[Product SKU]]&"*",'QB Report'!C:C,0)) -> 94 | T108: 0.1 | U108: =INDEX('QB Report'!F:F,MATCH(Table_Query_from_AdvancePro_DB4[[#This Row],[Product SKU]]&"*",'QB Report'!C:C,0)) -> 0.1 | V108: 9.4 | W108: =INDEX('QB Report'!H:H,MATCH(Table_Query_from_AdvancePro_DB4[[#This Row],[Product SKU]]&"*",'QB Report'!C:C,0)) -> 9.4 | X108: =Table_Query_from_AdvancePro_DB4[[#This Row],[Actual Asset Value]]-Table_Query_from_AdvancePro_DB4[[#This Row],[Exp. Asset Value]] -> 0
A109: 1238 | B109: test234 | C109: test234 | D109: 0 | E109: 0 | G109: 1 | H109: 1 | R109: 0 | S109: =INDEX('QB Report'!D:D,MATCH(Table_Query_from_AdvancePro_DB4[[#This Row],[Product SKU]]&"*",'QB Report'!C:C,0)) -> 0 | T109: 0 | U109: =INDEX('QB Report'!F:F,MATCH(Table_Query_from_AdvancePro_DB4[[#This Row],[Product SKU]]&"*",'QB Report'!C:C,0)) -> 0 | V109: 0 | W109: =INDEX('QB Report'!H:H,MATCH(Table_Query_from_AdvancePro_DB4[[#This Row],[Product SKU]]&"*",'QB Report'!C:C,0)) -> 0 | X109: =Table_Query_from_AdvancePro_DB4[[#This Row],[Actual Asset Value]]-Table_Query_from_AdvancePro_DB4[[#This Row],[Exp. Asset Value]] -> 0
A110: 1273 | B110: TESTKIT | C110: Test Kit | D110: 0 | G110: 1 | H110: 1 | R110: 0 | S110: =INDEX('QB Report'!D:D,MATCH(Table_Query_from_AdvancePro_DB4[[#This Row],[Product SKU]]&"*",'QB Report'!C:C,0)) ->  | U110: =INDEX('QB Report'!F:F,MATCH(Table_Query_from_AdvancePro_DB4[[#This Row],[Product SKU]]&"*",'QB Report'!C:C,0)) ->  | W110: =INDEX('QB Report'!H:H,MATCH(Table_Query_from_AdvancePro_DB4[[#This Row],[Product SKU]]&"*",'QB Report'!C:C,0)) ->  | X110: =Table_Query_from_AdvancePro_DB4[[#This Row],[Actual Asset Value]]-Table_Query_from_AdvancePro_DB4[[#This Row],[Exp. Asset Value]] -> 
A111: 1267 | B111: TEST-TAX | C111: Test Tax Item | D111: 0 | G111: 1 | H111: 1 | R111: 0 | S111: =INDEX('QB Report'!D:D,MATCH(Table_Query_from_AdvancePro_DB4[[#This Row],[Product SKU]]&"*",'QB Report'!C:C,0)) ->  | U111: =INDEX('QB Report'!F:F,MATCH(Table_Query_from_AdvancePro_DB4[[#This Row],[Product SKU]]&"*",'QB Report'!C:C,0)) ->  | W111: =INDEX('QB Report'!H:H,MATCH(Table_Query_from_AdvancePro_DB4[[#This Row],[Product SKU]]&"*",'QB Report'!C:C,0)) ->  | X111: =Table_Query_from_AdvancePro_DB4[[#This Row],[Actual Asset Value]]-Table_Query_from_AdvancePro_DB4[[#This Row],[Exp. Asset Value]] -> 
A112: 1218 | B112: TILE | C112: Ceramic Tile | D112: 1 | E112: 10 | G112: 1 | H112: 1 | I112: 10 | R112: -9 | S112: =INDEX('QB Report'!D:D,MATCH(Table_Query_from_AdvancePro_DB4[[#This Row],[Product SKU]]&"*",'QB Report'!C:C,0)) -> -1 | T112: 10 | U112: =INDEX('QB Report'!F:F,MATCH(Table_Query_from_AdvancePro_DB4[[#This Row],[Product SKU]]&"*",'QB Report'!C:C,0)) -> 10 | V112: -90 | W112: =INDEX('QB Report'!H:H,MATCH(Table_Query_from_AdvancePro_DB4[[#This Row],[Product SKU]]&"*",'QB Report'!C:C,0)) -> -10 | X112: =Table_Query_from_AdvancePro_DB4[[#This Row],[Actual Asset Value]]-Table_Query_from_AdvancePro_DB4[[#This Row],[Exp. Asset Value]] -> 80
A113: 1199 | B113: Tile_ABC | C113: Stone Tile | D113: 1329 | E113: 2.5 | F113: 2.5 | G113: 1 | H113: 1 | I113: 50 | M113: 41 | R113: 1320 | S113: =INDEX('QB Report'!D:D,MATCH(Table_Query_from_AdvancePro_DB4[[#This Row],[Product SKU]]&"*",'QB Report'!C:C,0)) -> 540 | T113: 2.5 | U113: =INDEX('QB Report'!F:F,MATCH(Table_Query_from_AdvancePro_DB4[[#This Row],[Product SKU]]&"*",'QB Report'!C:C,0)) -> 2.5 | V113: 3300 | W113: =INDEX('QB Report'!H:H,MATCH(Table_Query_from_AdvancePro_DB4[[#This Row],[Product SKU]]&"*",'QB Report'!C:C,0)) -> 1350 | X113: =Table_Query_from_AdvancePro_DB4[[#This Row],[Actual Asset Value]]-Table_Query_from_AdvancePro_DB4[[#This Row],[Exp. Asset Value]] -> -1950
A114: 1200 | B114: Tile_XYZ | C114: Tile XYZ 6''x6'' | D114: 139 | E114: 13 | F114: 13 | G114: 1 | H114: 1 | R114: 139 | S114: =INDEX('QB Report'!D:D,MATCH(Table_Query_from_AdvancePro_DB4[[#This Row],[Product SKU]]&"*",'QB Report'!C:C,0)) -> 189 | T114: 13 | U114: =INDEX('QB Report'!F:F,MATCH(Table_Query_from_AdvancePro_DB4[[#This Row],[Product SKU]]&"*",'QB Report'!C:C,0)) -> 13 | V114: 1807 | W114: =INDEX('QB Report'!H:H,MATCH(Table_Query_from_AdvancePro_DB4[[#This Row],[Product SKU]]&"*",'QB Report'!C:C,0)) -> 2457 | X114: =Table_Query_from_AdvancePro_DB4[[#This Row],[Actual Asset Value]]-Table_Query_from_AdvancePro_DB4[[#This Row],[Exp. Asset Value]] -> 650
A115: 1091 | B115: Tob01 | C115: Toblerone Swiss Milk Chocolate with Honey and Almond Nouga (100g) Bar | D115: 151 | E115: 2 | G115: 1 | H115: 1 | M115: 10 | R115: 161 | S115: =INDEX('QB Report'!D:D,MATCH(Table_Query_from_AdvancePro_DB4[[#This Row],[Product SKU]]&"*",'QB Report'!C:C,0)) -> 162.00005 | T115: 2 | U115: =INDEX('QB Report'!F:F,MATCH(Table_Query_from_AdvancePro_DB4[[#This Row],[Product SKU]]&"*",'QB Report'!C:C,0)) -> 2 | V115: 322 | W115: =INDEX('QB Report'!H:H,MATCH(Table_Query_from_AdvancePro_DB4[[#This Row],[Product SKU]]&"*",'QB Report'!C:C,0)) -> 324 | X115: =Table_Query_from_AdvancePro_DB4[[#This Row],[Actual Asset Value]]-Table_Query_from_AdvancePro_DB4[[#This Row],[Exp. Asset Value]] -> 2
A116: 1101 | B116: tshirt | C116: T-shirt | D116: 31 | E116: 2 | G116: 1 | H116: 1 | I116: 30 | R116: 1 | S116: =INDEX('QB Report'!D:D,MATCH(Table_Query_from_AdvancePro_DB4[[#This Row],[Product SKU]]&"*",'QB Report'!C:C,0)) -> 0 | T116: 2 | U116: =INDEX('QB Report'!F:F,MATCH(Table_Query_from_AdvancePro_DB4[[#This Row],[Product SKU]]&"*",'QB Report'!C:C,0)) -> 0 | V116: 2 | W116: =INDEX('QB Report'!H:H,MATCH(Table_Query_from_AdvancePro_DB4[[#This Row],[Product SKU]]&"*",'QB Report'!C:C,0)) -> 0 | X116: =Table_Query_from_AdvancePro_DB4[[#This Row],[Actual Asset Value]]-Table_Query_from_AdvancePro_DB4[[#This Row],[Exp. Asset Value]] -> -2
A117: 1247 | B117: UOM-ITEM | C117: UOM Item | D117: 100 | E117: 1 | F117: 1 | G117: 1 | H117: 1 | R117: 100 | S117: =INDEX('QB Report'!D:D,MATCH(Table_Query_from_AdvancePro_DB4[[#This Row],[Product SKU]]&"*",'QB Report'!C:C,0)) ->  | T117: 1 | U117: =INDEX('QB Report'!F:F,MATCH(Table_Query_from_AdvancePro_DB4[[#This Row],[Product SKU]]&"*",'QB Report'!C:C,0)) ->  | V117: 100 | W117: =INDEX('QB Report'!H:H,MATCH(Table_Query_from_AdvancePro_DB4[[#This Row],[Product SKU]]&"*",'QB Report'!C:C,0)) ->  | X117: =Table_Query_from_AdvancePro_DB4[[#This Row],[Actual Asset Value]]-Table_Query_from_AdvancePro_DB4[[#This Row],[Exp. Asset Value]] -> 
A118: 1229 | B118: variant | C118: new variant | D118: 0 | G118: 1 | H118: 1 | R118: 0 | S118: =INDEX('QB Report'!D:D,MATCH(Table_Query_from_AdvancePro_DB4[[#This Row],[Product SKU]]&"*",'QB Report'!C:C,0)) -> 0 | U118: =INDEX('QB Report'!F:F,MATCH(Table_Query_from_AdvancePro_DB4[[#This Row],[Product SKU]]&"*",'QB Report'!C:C,0)) -> 0 | W118: =INDEX('QB Report'!H:H,MATCH(Table_Query_from_AdvancePro_DB4[[#This Row],[Product SKU]]&"*",'QB Report'!C:C,0)) -> 0 | X118: =Table_Query_from_AdvancePro_DB4[[#This Row],[Actual Asset Value]]-Table_Query_from_AdvancePro_DB4[[#This Row],[Exp. Asset Value]] -> 0
A119: 1128 | B119: VAT1 | C119: Variable Assembly Test | D119: 120 | E119: 110 | F119: 69.5 | G119: 1 | H119: 1 | R119: 120 | S119: =INDEX('QB Report'!D:D,MATCH(Table_Query_from_AdvancePro_DB4[[#This Row],[Product SKU]]&"*",'QB Report'!C:C,0)) -> 100 | T119: 69.5 | U119: =INDEX('QB Report'!F:F,MATCH(Table_Query_from_AdvancePro_DB4[[#This Row],[Product SKU]]&"*",'QB Report'!C:C,0)) -> 39.07 | V119: 8340 | W119: =INDEX('QB Report'!H:H,MATCH(Table_Query_from_AdvancePro_DB4[[#This Row],[Product SKU]]&"*",'QB Report'!C:C,0)) -> 3907.14 | X119: =Table_Query_from_AdvancePro_DB4[[#This Row],[Actual Asset Value]]-Table_Query_from_AdvancePro_DB4[[#This Row],[Exp. Asset Value]] -> -4432.86
A120: 1201 | B120: WIR-2C | C120: Lead Wire | D120: 354 | E120: 0.5 | G120: 1 | H120: 1 | I120: 40.25 | J120: 10 | M120: 4 | R120: 307.75 | S120: =INDEX('QB Report'!D:D,MATCH(Table_Query_from_AdvancePro_DB4[[#This Row],[Product SKU]]&"*",'QB Report'!C:C,0)) -> 98.75 | T120: 0.5 | U120: =INDEX('QB Report'!F:F,MATCH(Table_Query_from_AdvancePro_DB4[[#This Row],[Product SKU]]&"*",'QB Report'!C:C,0)) -> 0.5 | V120: 153.875 | W120: =INDEX('QB Report'!H:H,MATCH(Table_Query_from_AdvancePro_DB4[[#This Row],[Product SKU]]&"*",'QB Report'!C:C,0)) -> 49.37 | X120: =Table_Query_from_AdvancePro_DB4[[#This Row],[Actual Asset Value]]-Table_Query_from_AdvancePro_DB4[[#This Row],[Exp. Asset Value]] -> -104.505
A121: 1197 | B121: WOUND-BOB-FTB | C121: WOUND-BOB-FTB | D121: 100 | E121: 0.452 | G121: 1 | H121: 1 | R121: 100 | S121: =INDEX('QB Report'!D:D,MATCH(Table_Query_from_AdvancePro_DB4[[#This Row],[Product SKU]]&"*",'QB Report'!C:C,0)) -> 100 | T121: 0.452 | U121: =INDEX('QB Report'!F:F,MATCH(Table_Query_from_AdvancePro_DB4[[#This Row],[Product SKU]]&"*",'QB Report'!C:C,0)) -> 0.45 | V121: 45.2 | W121: =INDEX('QB Report'!H:H,MATCH(Table_Query_from_AdvancePro_DB4[[#This Row],[Product SKU]]&"*",'QB Report'!C:C,0)) -> 45.2 | X121: =Table_Query_from_AdvancePro_DB4[[#This Row],[Actual Asset Value]]-Table_Query_from_AdvancePro_DB4[[#This Row],[Exp. Asset Value]] -> 0
A122: 1264 | B122: WW-87 | C122: WHITE WINE | D122: 500 | E122: 0 | G122: 1 | H122: 1 | R122: 500 | S122: =INDEX('QB Report'!D:D,MATCH(Table_Query_from_AdvancePro_DB4[[#This Row],[Product SKU]]&"*",'QB Report'!C:C,0)) ->  | T122: 0 | U122: =INDEX('QB Report'!F:F,MATCH(Table_Query_from_AdvancePro_DB4[[#This Row],[Product SKU]]&"*",'QB Report'!C:C,0)) ->  | V122: 0 | W122: =INDEX('QB Report'!H:H,MATCH(Table_Query_from_AdvancePro_DB4[[#This Row],[Product SKU]]&"*",'QB Report'!C:C,0)) ->  | X122: =Table_Query_from_AdvancePro_DB4[[#This Row],[Actual Asset Value]]-Table_Query_from_AdvancePro_DB4[[#This Row],[Exp. Asset Value]] -> 
A123: Total | I123: =SUMIF(Table_Query_from_AdvancePro_DB4[Bills],"<>#N/A") -> 4836.25 | J123: =SUMIF(Table_Query_from_AdvancePro_DB4[DS Bills],"<>#N/A") -> 46 | K123: =SUMIF(Table_Query_from_AdvancePro_DB4[Cust RMA],"<>#N/A") -> 0 | L123: =SUMIF(Table_Query_from_AdvancePro_DB4[WO Built],"<>#N/A") -> 0 | M123: =SUMIF(Table_Query_from_AdvancePro_DB4[Invoices],"<>#N/A") -> 148 | N123: =SUMIF(Table_Query_from_AdvancePro_DB4[DS Invoices],"<>#N/A") -> 29 | O123: =SUMIF(Table_Query_from_AdvancePro_DB4[Vendor RMA],"<>#N/A") -> 10 | P123: =SUMIF(Table_Query_from_AdvancePro_DB4[WO Used],"<>#N/A") -> 0 | Q123: =SUMIF(Table_Query_from_AdvancePro_DB4[Adjusted],"<>#N/A") -> 0 | R123: =SUMIF(Table_Query_from_AdvancePro_DB4[Exp. QB QTY],"<>#N/A") -> 53091.974 | S123: =SUMIF(Table_Query_from_AdvancePro_DB4[Actual QB QTY],"<>#N/A") -> 44553.7502 | V123: =SUMIF(Table_Query_from_AdvancePro_DB4[Exp. Asset Value],"<>#N/A") -> 719766.4196 | W123: =SUMIF(Table_Query_from_AdvancePro_DB4[Actual Asset Value],"<>#N/A") -> 478894.4 | X123: =SUMIF(Table_Query_from_AdvancePro_DB4[Value Difference],"<>#N/A") -> -124805.79

Sheet QB Report
D1: On Hand | F1: Avg Cost | H1: Asset Value
B2: Inventory
C3: _-*@test (Test Product 1) | D3: 0 | F3: 0 | H3: 0
C4: ABM-04 (Alabaster Black - Marble - 3/4 in - 110 x 54 inches) | D4: 0 | F4: 0 | H4: 0
C5: B-11 (B 11) | D5: 100 | F5: 0 | H5: 0
C6: B-487 (Glass Bauble) | D6: 8 | F6: 300 | H6: 2400
C7: B-678 (Baseball Card) | D7: 0 | F7: 0 | H7: 0
C8: BASSWOOD (BASSWOOD) | D8: 100 | F8: 0 | H8: 0
C9: BBG-01 (Baltic Brown - Granite - 3/4in - 73 x 118 inches) | D9: 51 | F9: 0 | H9: 0
C10: BCPotatoes (Betty Crocker Au Gratin Potatoes) | D10: 148 | F10: 7 | H10: 1036
C11: BD001 (BLACK & DECKER 20-Volt Max 3/8-in Cordless Battery Included Drill) | D11: 31.0001 | F11: 1 | H11: 31
C12: BOB-BRIDGE (BOB-BRIDGE) | D12: 100 | F12: 0.01 | H12: 1
C13: BREAKER (BREAKER) | D13: 1 | F13: 0 | H13: 0
C14: BSODA (Arm & Hammer Baking Soda) | D14: 590.00005 | F14: 2 | H14: 1180
C15: CEOSRT3 (CANNON EOS Rebel T3) | D15: 105 | F15: 100 | H15: 10500
C16: CN5012 (Canon 50mm 1.2L Lens) | D16: 100 | F16: 1100 | H16: 110000
C17: CN600EX (Canon Speedlite 600EX-RT Flash) | D17: 14 | F17: 300 | H17: 4200
C18: CO296 (Black Antique - Granite - 3/4 in - 112 x 71 inches) | D18: 1 | F18: 0 | H18: 0
C19: CT044 (Bianco Pentelico - Marble - 3/4 in - 116 x 76 inches) | D19: 1 | F19: 0 | H19: 0
C20: CVR-DYN-B (DYNA COVER TALL) | D20: 100 | F20: 1 | H20: 100
C21: CVR-DYN-B-GLD (PLATING FOR TALL DYNA - GOLD) | D21: 100 | F21: 5 | H21: 500
C22: CVR-DYN-CHM (PLATING FOR DYNA SHORT - CHROME) | D22: 99 | F22: 3 | H22: 297
C23: CVR-DYN-N (DYNA COVER SHORT) | D23: 100 | F23: 5 | H23: 500
C24: DREM001 (Dremel Micro 18-Piece Variable-Speed Multipurpose Rotary Tool Kit) | D24: 98 | F24: 150 | H24: 14700
C25: DREM002 (Dremel All-Purpose Rotary Tool Accessory Kit) | D25: 100 | F25: 200 | H25: 20000
C26: DW0002 (DEWALT 18-Volt 1/2-in Cordless Battery Included Drill with Soft Case) | D26: 200 | F26: 1 | H26: 200
C27: H10 (Hi Volatility Coal) | D27: 29720 | F27: 1.7 | H27: 50524
C28: HDGT01 (Hagen-Dazs Green Tea Ice Cream) | D28: 152 | F28: 2 | H28: 304
C29: IGL-03 (Indus Gold - Limestone - 3/4 in - 100 x 54 inches) | D29: 51 | F29: 0 | H29: 0
C30: INT001 (Intel Pentium G3240 Dual-Core 3.1GHz CPU/Gigabyte GA-B85M-HD3 mATX MB/4GB... | D30: 997 | F30: 100 | H30: 99700
C31: Internal ABC (Part; ABC) | D31: 0 | F31: 0 | H31: 0
C32: iphone 6s (Iphone 6s) | D32: 5 | F32: 50 | H32: 250
C33: LACREMA (Lavazza Crema Aroma Coffee Beans) | D33: 150 | F33: 12.5 | H33: 1875
C34: MAG CYL (CYLINDER MAGNETS) | D34: 5000 | F34: 1 | H34: 5000
C35: MAG WIRE (MAG WIRE) | D35: 0 | F35: 0 | H35: 0
C36: MFEILD (Mrs. Feilds Chocolate Chip Cookies) | D36: 48 | F36: 4 | H36: 192
C37: MFEILDS (Mrs. Fields Jumbo Individually Wrapped Chocolate Chip Cookies (12 count)) | D37: 80 | F37: 54 | H37: 4320
C38: MWE0-22 (Magnific White - Granite - 3/4 in - 124 x 73 inches) | D38: 1 | F38: 0 | H38: 0
C39: N17-55mm (Nikon 17-55mm f/2.8G ED-IF AF-S DX Lens) | D39: 100 | F39: 10 | H39: 1000
C40: ND3200 (Nikon D3200) | D40: 105 | F40: 1100.95 | H40: 115600
C41: ND750 (Nikon D750 FX-format Digital SLR) | D41: 100 | F41: 100 | H41: 10000
C42: NVG4CE (Gigabyte GeForce GTX 970 G1) | D42: 879 | F42: 2 | H42: 1758
C43: PanelABC (Solar Panel ABC) | D43: -547 | F43: 100 | H43: -54700
C44: PHSAECO (Saeco Poemia Espresso Machine) | D44: 100 | F44: 110 | H44: 11000
C45: PLATING FOR 632S SCREW-CHROME (PLATING FOR 632S SCREW-CHROME) | D45: 100 | F45: 1 | H45: 100
C46: PSUP (Ultra LSP Series V2 650-Watt Power Supply - ATX, 6x SATA, 2x PCI-E, 20/24-P... | D46: 87 | F46: 25 | H46: 2175
C47: RENT (RENT) | D47: 100 | F47: 0 | H47: 0
C48: SB-COFFEE-12OZ (Starbucks House Blend Coffee 12oz Bag) | D48: 150 | F48: 7.5 | H48: 1125
C49: SCRW 632 (SCRW 632) | D49: 100 | F49: 0.01 | H49: 1
C50: SDUSB-8GB (Sandisk USB Drive 8GB) | D50: 90 | F50: 7 | H50: 630
C51: SKU123@*@!@ (Test Product 2) | D51: 0 | F51: 0 | H51: 0
C52: TA-SCREW (Height Adjustment screws) | D52: 94 | F52: 0.1 | H52: 9.4
C53: TA-SPRING (TA-SPRING) | D53: 94 | F53: 0.1 | H53: 9.4
C54: TAB-DAGLD (TAB-DAGLD) | D54: -1 | F54: 0 | H54: 0
C55: TAN-DACHM (TAN-DACHM) | D55: 0 | F55: 0 | H55: 0
C56: TILE (Ceramic Tile) | D56: -1 | F56: 10 | H56: -10
C57: Tile_ABC (Stone Tile) | D57: 540 | F57: 2.5 | H57: 1350
C58: Tile_XYZ (Tile XYZ 6''x6'') | D58: 189 | F58: 13 | H58: 2457
C59: Tob01 (Toblerone Swiss Milk Chocolate with Honey and Almond Nouga (100g) Bar) | D59: 162.00005 | F59: 2 | H59: 324
C60: tshirt (T-shirt) | D60: 0 | F60: 0 | H60: 0
C61: variant (new variant) | D61: 0 | F61: 0 | H61: 0
C62: WIR-2C (Lead Wire) | D62: 98.75 | F62: 0.5 | H62: 49.37
B63: Total Inventory | D63: =ROUND(SUM(D2:D62),5) -> 40890.7502 | H63: =ROUND(SUM(H2:H62),5) -> 420688.17
B64: Assembly
C65: 252025-L3-W1-T4 (CF25 with 25-26.9 Density, 32-35 long, 14 wide, 2.00-2.25 thick) | D65: 40 | F65: 3.4 | H65: 136
C66: 303030-L4-W2-T3 (CF30 with 30+ Density, 36-39 logn, 14-15 wide, 1.75-1.99 thick) | D66: 100 | F66: 3.4 | H66: 340
C67: 801000 (AutoClave Green H10) | D67: 0 | F67: 3.4 | H67: 0
C68: 803000 (Calcined H10) | D68: 0 | F68: 3.4 | H68: 0
C69: ASSEM0002 (Assembly Item 2) | D69: 0 | F69: 0 | H69: 0
C70: ASSEM001 (Test Assembly) | D70: 0 | F70: 0 | H70: 0
C71: AWA51 (Alienware Area 51 Computer) | D71: 1540 | F71: 34 | H71: 52360
C72: B-9.50 (9.50 Burner) | D72: 100 | F72: 34 | H72: 3400
C73: BOB-TAB-CORE (BOB-TAB-CORE) | D73: 99 | F73: 0.17 | H73: 16.48
C74: BOB-TAB-TOP (BOB-TAB-TOP) | D74: 100 | F74: 0.13 | H74: 13.36
C75: BOB-TAB-UNWOUND (BOB-TAB-UNWOUND) | D75: 100 | F75: 0.3 | H75: 30.01
C76: BOB-TAB-WOUND (BOB-TAB-WOUND) | D76: 99 | F76: 0.85 | H76: 83.76
C77: cuztom xyz (custom xyz) | D77: 0 | F77: 0 | H77: 0
C78: CVR-DYNA-B-GOLD (CVR-DYNA-B-GOLD) | D78: 100 | F78: 10 | H78: 1000
C79: FP-TAB (FP-TAB) | D79: 99 | F79: 0.43 | H79: 42.86
C80: FTB-NECHM (FTB-NECHM) | D80: 100 | F80: 0 | H80: 0
C81: MRSFIELD (Mrs. Fields' Chocolate Chip Cookies) | D81: 120 | F81: 4.79 | H81: 575
C82: SCRW-632-CHM (SCRW-632-CHM) | D82: 100 | F82: 1.01 | H82: 101
C83: TA ANGLE BRASS (TA ANGLE BRASS) | D83: 100 | F83: 0 | H83: 0
C84: TA BOBBIN FB (TA BOBBIN FB) | D84: 100 | F84: 0.46 | H84: 45.86
C85: TA Plastic-B (TA Plastic-B) | D85: 100 | F85: 0.16 | H85: 16.25
C86: TA TEARDROPS (TA TEARDROPS) | D86: 100 | F86: 0.01 | H86: 0.8
C87: TA TEARDROPS-PRESSED (TA TEARDROPS-PRESSED) | D87: 94 | F87: 6.05 | H87: 568.51
C88: TAB-DACHM (TAB-DACHM) | D88: 0 | F88: 15.21 | H88: 0
C89: TAB-THICK (TAB-THICK) | D89: 100 | F89: 0.1 | H89: 10
C90: TAB-THIN (TAB-THIN) | D90: 100 | F90: 0.25 | H90: 25
C91: TAB-WOOD (TAB-WOOD) | D91: 100 | F91: 0 | H91: 0
C92: test234 (test234) | D92: 0 | F92: 0 | H92: 0
C93: VAT1 (Variable Assembly Test) | D93: 100 | F93: 39.07 | H93: 3907.14
C94: WOUND-BOB-FTB (WOUND-BOB-FTB) | D94: 100 | F94: 0.45 | H94: 45.2
B95: Total Assembly | D95: =ROUND(SUM(D64:D94),5) -> 3691 | H95: =ROUND(SUM(H64:H94),5) -> 62717.23
A96: TOTAL | D96: =ROUND(D63+D95,5) -> 44581.7502 | H96: =ROUND(H63+H95,5) -> 483405.4
